Workbook

Sheet COVER
C2: Mini-grid Retail Tariff Tool
C3: Supportive framework conditions for mini-grids employing renewable and hybrid generation in the SADC Region
C6: This tool was prepared for the SADC Regional Electricity Regulators’ Association (RERA) by Economic Consulting Associates and Practical Action (Southern Africa). The support of the Africa-EU Renewable Energy Cooperation Programme (RECP), managed by the European Union Energy Initiative Partnership Dialogue Facility (EUEI PDF), is gratefully acknowledged.
B15: Note: Model is populated with dummy data for illustrative purposes

Sheet Inputs
A1: =[1]TITLE!Title_Project -> Retail Tariff Tool
A2: Inputs
B3: Unit | C3: Notes | D3: =$D$7 -> 2014 | E3: =D3+1 -> 2015 | F3: 2016 | G3: 2017 | H3: 2018 | I3: 2019 | J3: 2020 | K3: 2021 | L3: 2022 | M3: 2023 | N3: 2024 | O3: 2025 | P3: 2026 | Q3: 2027 | R3: 2028 | S3: 2029 | T3: 2030 | U3: 2031 | V3: 2032 | W3: 2033 | X3: 2034 | Y3: 2035 | Z3: 2036 | AA3: 2037 | AB3: 2038 | AC3: 2039 | AD3: 2040
A5: General
A7: First year of costs | B7: year | C7: The first year that costs are incurred | D7: 2014
A8: First year of operation | B8: year | C8: The year sales begin | D8: 2015
A9: Tariff period | B9: years | C9: The period over which tariffs stay constant (in real terms) between updates | D9: 5
A11: Billed consumption
A13: Domestic customers | B13: kWh | C13: Input forecast billed electricity consumption by customer category | E13: 40000000 | F13: =E13*(1+2%) -> 40800000 | G13: =F13*(1+2%) -> 41616000 | H13: 42448320 | I13: 43297286.4 | J13: 44163232.13 | K13: 45046496.77 | L13: 45947426.71 | M13: 46866375.24 | N13: 47803702.74 | O13: 48759776.8 | P13: 49734972.34 | Q13: 50729671.78 | R13: 51744265.22 | S13: 52779150.52 | T13: 53834733.53 | U13: 54911428.2 | V13: 56009656.77 | W13: 57129849.9 | X13: 58272446.9 | Y13: 59437895.84 | Z13: 60626653.76 | AA13: 61839186.83 | AB13: 63075970.57 | AC13: 64337489.98 | AD13: 65624239.78
A14: Commercial/industrial customers | B14: kWh | E14: 10000000 | F14: =E14*(1+2%) -> 10200000 | G14: 10404000 | H14: 10612080 | I14: 10824321.6 | J14: 11040808.03 | K14: 11261624.19 | L14: 11486856.68 | M14: 11716593.81 | N14: 11950925.69 | O14: 12189944.2 | P14: 12433743.08 | Q14: 12682417.95 | R14: 12936066.3 | S14: 13194787.63 | T14: 13458683.38 | U14: 13727857.05 | V14: 14002414.19 | W14: 14282462.48 | X14: 14568111.73 | Y14: 14859473.96 | Z14: 15156663.44 | AA14: 15459796.71 | AB14: 15768992.64 | AC14: 16084372.49 | AD14: 16406059.94
B15: kWh
B16: kWh
B17: kWh
B18: kWh
B19: kWh
A20: Total | B20: kWh | D20: =SUM(D13:D19) -> 0 | E20: =SUM(E13:E19) -> 50000000 | F20: 51000000 | G20: 52020000 | H20: 53060400 | I20: 54121608 | J20: 55204040.16 | K20: 56308120.96 | L20: 57434283.38 | M20: 58582969.05 | N20: 59754628.43 | O20: 60949721 | P20: 62168715.42 | Q20: 63412089.73 | R20: 64680331.52 | S20: 65973938.15 | T20: 67293416.92 | U20: 68639285.25 | V20: 70012070.96 | W20: 71412312.38 | X20: 72840558.63 | Y20: 74297369.8 | Z20: 75783317.19 | AA20: 77298983.54 | AB20: 78844963.21 | AC20: 80421862.47 | AD20: 82030299.72
A22: Operating costs
A24: Fuel costs | B24: $ | C24: Input operating costs by category. This should include power purchase costs. All cost forecasts should exclude inflation. | E24: 4050000 | F24: 4050000 | G24: 4050000 | H24: 4050000 | I24: 4050000 | J24: 4050000 | K24: 4050000 | L24: 4050000 | M24: 4050000 | N24: 4050000 | O24: 4050000 | P24: 4050000 | Q24: 4050000 | R24: 4050000 | S24: 4050000 | T24: 4050000 | U24: 4050000 | V24: 4050000 | W24: 4050000 | X24: 4050000 | Y24: 4050000 | Z24: 4050000 | AA24: 4050000 | AB24: 4050000 | AC24: 4050000 | AD24: 4050000
A25: Generator maintenance costs | B25: $ | E25: 500000 | F25: 500000 | G25: 500000 | H25: 500000 | I25: 500000 | J25: 500000 | K25: 500000 | L25: 500000 | M25: 500000 | N25: 500000 | O25: 500000 | P25: 500000 | Q25: 500000 | R25: 500000 | S25: 500000 | T25: 500000 | U25: 500000 | V25: 500000 | W25: 500000 | X25: 500000 | Y25: 500000 | Z25: 500000 | AA25: 500000 | AB25: 500000 | AC25: 500000 | AD25: 500000
A26: Network maintenance costs | B26: $ | E26: 500000 | F26: 500000 | G26: 500000 | H26: 500000 | I26: 500000 | J26: 500000 | K26: 500000 | L26: 500000 | M26: 500000 | N26: 500000 | O26: 500000 | P26: 500000 | Q26: 500000 | R26: 500000 | S26: 500000 | T26: 500000 | U26: 500000 | V26: 500000 | W26: 500000 | X26: 500000 | Y26: 500000 | Z26: 500000 | AA26: 500000 | AB26: 500000 | AC26: 500000 | AD26: 500000
A27: Administration costs | B27: $ | E27: 250000 | F27: 250000 | G27: 250000 | H27: 250000 | I27: 250000 | J27: 250000 | K27: 250000 | L27: 250000 | M27: 250000 | N27: 250000 | O27: 250000 | P27: 250000 | Q27: 250000 | R27: 250000 | S27: 250000 | T27: 250000 | U27: 250000 | V27: 250000 | W27: 250000 | X27: 250000 | Y27: 250000 | Z27: 250000 | AA27: 250000 | AB27: 250000 | AC27: 250000 | AD27: 250000
A28: Staff costs | B28: $ | E28: 500000 | F28: 500000 | G28: 500000 | H28: 500000 | I28: 500000 | J28: 500000 | K28: 500000 | L28: 500000 | M28: 500000 | N28: 500000 | O28: 500000 | P28: 500000 | Q28: 500000 | R28: 500000 | S28: 500000 | T28: 500000 | U28: 500000 | V28: 500000 | W28: 500000 | X28: 500000 | Y28: 500000 | Z28: 500000 | AA28: 500000 | AB28: 500000 | AC28: 500000 | AD28: 500000
B29: $
B30: $
A31: Total | B31: $ | D31: =SUM(D24:D30) -> 0 | E31: =SUM(E24:E30) -> 5800000 | F31: 5800000 | G31: 5800000 | H31: 5800000 | I31: 5800000 | J31: 5800000 | K31: 5800000 | L31: 5800000 | M31: 5800000 | N31: 5800000 | O31: 5800000 | P31: 5800000 | Q31: 5800000 | R31: 5800000 | S31: 5800000 | T31: 5800000 | U31: 5800000 | V31: 5800000 | W31: 5800000 | X31: 5800000 | Y31: 5800000 | Z31: 5800000 | AA31: 5800000 | AB31: 5800000 | AC31: 5800000 | AD31: 5800000
A33: Capital costs (less capital contributions)
A35: Development | B35: $ | C35: Input capital costs by asset type. This should be the all-in cost (including interest during construction). Capital contributions should be excluded from capital costs. | D35: 1000000
A36: Generator | B36: $ | D36: 20000000
A37: Network | B37: $ | D37: 4000000
A38: Land | B38: $ | D38: 1000000
A39: Meters | B39: $ | D39: 200000
B40: $
B41: $
A42: Total | B42: $ | D42: =SUM(D35:D41) -> 26200000 | E42: =SUM(E35:E41) -> 0 | F42: 0 | G42: 0 | H42: 0 | I42: 0 | J42: 0 | K42: 0 | L42: 0 | M42: 0 | N42: 0 | O42: 0 | P42: 0 | Q42: 0 | R42: 0 | S42: 0 | T42: 0 | U42: 0 | V42: 0 | W42: 0 | X42: 0 | Y42: 0 | Z42: 0 | AA42: 0 | AB42: 0 | AC42: 0 | AD42: 0
A44: Average asset lives by asset type
A46: =IF(A35<>"",A35,"") -> Development | B46: years | C46: Input average asset lives for each asset type entered above. Leave blank or enter NA if asset does not depreciate. | D46: 20
A47: =IF(A36<>"",A36,"") -> Generator | B47: years | D47: 20
A48: Network | B48: years | D48: 20
A49: Land | B49: years | D49: 20
A50: Meters | B50: years | D50: 20
B51: years
B52: years
A54: Collection rate
A56: Collection rate as a percentage of billed revenue | B56: % | C56: The percentage of billed revenue that is collected. | E56: 0.9 | F56: 0.9 | G56: 0.9 | H56: 0.9 | I56: 0.9 | J56: 0.9 | K56: 0.9 | L56: 0.9 | M56: 0.9 | N56: 0.9 | O56: 0.9 | P56: 0.9 | Q56: 0.9 | R56: 0.9 | S56: 0.9 | T56: 0.9 | U56: 0.9 | V56: 0.9 | W56: 0.9 | X56: 0.9 | Y56: 0.9 | Z56: 0.9 | AA56: 0.9 | AB56: 0.9 | AC56: 0.9 | AD56: 0.9
A58: Deductible income
A60: Connection and disconnection fees | B60: $ | C60: Input non-tariff income that is earned using assets paid for from above costs. This may include connection and disconnection fees, metering reading fees, rental income etc. | E60: 50000 | F60: 50000 | G60: 50000 | H60: 50000 | I60: 50000 | J60: 50000 | K60: 50000 | L60: 50000 | M60: 50000 | N60: 50000 | O60: 50000 | P60: 50000 | Q60: 50000 | R60: 50000 | S60: 50000 | T60: 50000 | U60: 50000 | V60: 50000 | W60: 50000 | X60: 50000 | Y60: 50000 | Z60: 50000 | AA60: 50000 | AB60: 50000 | AC60: 50000 | AD60: 50000
A61: Rental income | B61: $ | E61: 50000 | F61: 50000 | G61: 50000 | H61: 50000 | I61: 50000 | J61: 50000 | K61: 50000 | L61: 50000 | M61: 50000 | N61: 50000 | O61: 50000 | P61: 50000 | Q61: 50000 | R61: 50000 | S61: 50000 | T61: 50000 | U61: 50000 | V61: 50000 | W61: 50000 | X61: 50000 | Y61: 50000 | Z61: 50000 | AA61: 50000 | AB61: 50000 | AC61: 50000 | AD61: 50000
B62: $
B63: $
B64: $
B65: $
B66: $
A67: Total | B67: $ | D67: =SUM(D60:D66) -> 0 | E67: =SUM(E60:E66) -> 100000 | F67: 100000 | G67: =SUM(G60:G66) -> 100000 | H67: =SUM(H60:H66) -> 100000 | I67: 100000 | J67: 100000 | K67: 100000 | L67: 100000 | M67: 100000 | N67: 100000 | O67: 100000 | P67: 100000 | Q67: 100000 | R67: 100000 | S67: 100000 | T67: 100000 | U67: 100000 | V67: 100000 | W67: 100000 | X67: 100000 | Y67: 100000 | Z67: 100000 | AA67: 100000 | AB67: 100000 | AC67: 100000 | AD67: 100000
A69: Financing costs
A71: Gearing | B71: % | C71: The percentage of investments financed with debt | D71: 0.7
A72: Loan period | B72: years | C72: The repayment period of loans | D72: 10
A73: Interest rate (nominal)
A74: Nominal | B74: % | C74: Interest rate (on loans) including inflation | D74: 0.16
A75: Real | B75: % | C75: Interest rate (on loans) excluding inflation | D75: =D74-D83 -> 0.12
A76: Pre-tax return on equity
A77: Nominal | B77: % | C77: The return that the investor expects on equity contributed including inflation, before tax | D77: 0.22
A78: Real | B78: % | C78: The return that the investor expects on equity contributed excluding inflation, before tax | D78: =D77-D83 -> 0.18
A79: Weighted average cost of capital (pre-tax real) | B79: % | C79: The weighted average cost of capital employed (used to calculate return on capital) | D79: =D75*D71+D78*(1-D71) -> 0.138
A81: Inflation
A83: Inflation rate (for indexation of tariff) | B83: % | C83: Assumes that the tariff will be indexed to inflation (to reflect changes in costs over time). | D83: 0.04 | E83: =D83 -> 0.04 | F83: =E83 -> 0.04 | G83: 0.04 | H83: 0.04 | I83: 0.04 | J83: 0.04 | K83: 0.04 | L83: 0.04 | M83: 0.04 | N83: 0.04 | O83: 0.04 | P83: 0.04 | Q83: 0.04 | R83: 0.04 | S83: 0.04 | T83: 0.04 | U83: 0.04 | V83: 0.04 | W83: 0.04 | X83: 0.04 | Y83: 0.04 | Z83: 0.04 | AA83: 0.04 | AB83: 0.04 | AC83: 0.04 | AD83: 0.04

Sheet Calculations
A1: =[1]TITLE!Title_Project -> Retail Tariff Tool
A2: Calculations
B3: Unit | C3: Comments | D3: =Inputs!$D$7 -> 2014 | E3: =D3+1 -> 2015 | F3: 2016 | G3: 2017 | H3: 2018 | I3: 2019 | J3: 2020 | K3: 2021 | L3: 2022 | M3: 2023 | N3: 2024 | O3: 2025 | P3: 2026 | Q3: 2027 | R3: 2028 | S3: 2029 | T3: 2030 | U3: 2031 | V3: 2032 | W3: 2033 | X3: 2034 | Y3: 2035 | Z3: 2036 | AA3: 2037 | AB3: 2038 | AC3: 2039 | AD3: 2040
A5: Opening asset base
A7: =IF(Inputs!A35<>"",Inputs!A35,"") -> Development | B7: $ | C7: The depreciated value of assets as at the start of the year | D7: 0 | E7: =D40 -> 1000000 | F7: =E40 -> 950000 | G7: 902500 | H7: 857375 | I7: 814506.25 | J7: 773780.9375 | K7: 735091.8906 | L7: 698337.2961 | M7: 663420.4313 | N7: 630249.4097 | O7: 598736.9392 | P7: 568800.0923 | Q7: 540360.0877 | R7: 513342.0833 | S7: 487674.9791 | T7: 463291.2302 | U7: 440126.6687 | V7: =U40 -> 418120.3352 | W7: 397214.3185 | X7: 377353.6025 | Y7: 358485.9224 | Z7: 340561.6263 | AA7: 323533.545 | AB7: 307356.8677 | AC7: 291989.0243 | AD7: 277389.5731
A8: =IF(Inputs!A36<>"",Inputs!A36,"") -> Generator | B8: $ | D8: 0 | E8: =D41 -> 20000000 | F8: 19000000 | G8: 18050000 | H8: 17147500 | I8: 16290125 | J8: 15475618.75 | K8: 14701837.81 | L8: 13966745.92 | M8: 13268408.63 | N8: 12604988.19 | O8: 11974738.78 | P8: 11376001.85 | Q8: 10807201.75 | R8: 10266841.67 | S8: 9753499.582 | T8: 9265824.603 | U8: 8802533.373 | V8: 8362406.704 | W8: 7944286.369 | X8: 7547072.051 | Y8: 7169718.448 | Z8: 6811232.526 | AA8: 6470670.899 | AB8: 6147137.355 | AC8: 5839780.487 | AD8: 5547791.462
A9: =IF(Inputs!A37<>"",Inputs!A37,"") -> Network | B9: $ | D9: 0 | E9: 4000000 | F9: 3800000 | G9: 3610000 | H9: 3429500 | I9: 3258025 | J9: 3095123.75 | K9: 2940367.562 | L9: 2793349.184 | M9: 2653681.725 | N9: 2520997.639 | O9: 2394947.757 | P9: 2275200.369 | Q9: 2161440.351 | R9: 2053368.333 | S9: 1950699.916 | T9: 1853164.921 | U9: 1760506.675 | V9: 1672481.341 | W9: 1588857.274 | X9: 1509414.41 | Y9: 1433943.69 | Z9: 1362246.505 | AA9: 1294134.18 | AB9: 1229427.471 | AC9: 1167956.097 | AD9: 1109558.292
A10: =IF(Inputs!A38<>"",Inputs!A38,"") -> Land | B10: $ | D10: 0 | E10: 1000000 | F10: 950000 | G10: 902500 | H10: 857375 | I10: 814506.25 | J10: 773780.9375 | K10: 735091.8906 | L10: 698337.2961 | M10: 663420.4313 | N10: 630249.4097 | O10: 598736.9392 | P10: 568800.0923 | Q10: 540360.0877 | R10: 513342.0833 | S10: 487674.9791 | T10: 463291.2302 | U10: 440126.6687 | V10: 418120.3352 | W10: 397214.3185 | X10: 377353.6025 | Y10: 358485.9224 | Z10: 340561.6263 | AA10: 323533.545 | AB10: 307356.8677 | AC10: 291989.0243 | AD10: 277389.5731
A11: =IF(Inputs!A39<>"",Inputs!A39,"") -> Meters | B11: $ | D11: 0 | E11: 200000 | F11: 190000 | G11: 180500 | H11: 171475 | I11: 162901.25 | J11: 154756.1875 | K11: 147018.3781 | L11: 139667.4592 | M11: 132684.0863 | N11: 126049.8819 | O11: 119747.3878 | P11: 113760.0185 | Q11: 108072.0175 | R11: 102668.4167 | S11: 97534.99582 | T11: 92658.24603 | U11: 88025.33373 | V11: 83624.06704 | W11: 79442.86369 | X11: 75470.72051 | Y11: 71697.18448 | Z11: 68112.32526 | AA11: 64706.70899 | AB11: 61471.37355 | AC11: 58397.80487 | AD11: 55477.91462
A12: =IF(Inputs!A40<>"",Inputs!A40,"") ->  | B12: $ | D12: 0 | E12: 0 | F12: 0 | G12: 0 | H12: 0 | I12: 0 | J12: 0 | K12: 0 | L12: 0 | M12: 0 | N12: 0 | O12: 0 | P12: 0 | Q12: 0 | R12: 0 | S12: 0 | T12: 0 | U12: 0 | V12: 0 | W12: 0 | X12: 0 | Y12: 0 | Z12: 0 | AA12: 0 | AB12: 0 | AC12: 0 | AD12: 0
A13: =IF(Inputs!A41<>"",Inputs!A41,"") ->  | B13: $ | D13: 0 | E13: 0 | F13: 0 | G13: 0 | H13: 0 | I13: 0 | J13: 0 | K13: 0 | L13: 0 | M13: 0 | N13: 0 | O13: 0 | P13: 0 | Q13: 0 | R13: 0 | S13: 0 | T13: 0 | U13: 0 | V13: 0 | W13: 0 | X13: 0 | Y13: 0 | Z13: 0 | AA13: 0 | AB13: 0 | AC13: 0 | AD13: 0
A14: Total | B14: $ | D14: =SUM(D7:D13) -> 0 | E14: =SUM(E7:E13) -> 26200000 | F14: 24890000 | G14: 23645500 | H14: 22463225 | I14: 21340063.75 | J14: 20273060.56 | K14: 19259407.53 | L14: 18296437.16 | M14: 17381615.3 | N14: 16512534.53 | O14: 15686907.81 | P14: 14902562.42 | Q14: 14157434.3 | R14: 13449562.58 | S14: 12777084.45 | T14: 12138230.23 | U14: 11531318.72 | V14: 10954752.78 | W14: 10407015.14 | X14: 9886664.386 | Y14: 9392331.167 | Z14: 8922714.609 | AA14: 8476578.878 | AB14: 8052749.934 | AC14: 7650112.438 | AD14: 7267606.816
A16: Capital expenditure
A18: =IF(Inputs!A35<>"",Inputs!A35,"") -> Development | B18: $ | C18: Capital expenditure | D18: =Inputs!D35 -> 1000000 | E18: =Inputs!E35 -> 0 | F18: =Inputs!F35 -> 0 | G18: =Inputs!G35 -> 0 | H18: =Inputs!H35 -> 0 | I18: =Inputs!I35 -> 0 | J18: =Inputs!J35 -> 0 | K18: =Inputs!K35 -> 0 | L18: =Inputs!L35 -> 0 | M18: =Inputs!M35 -> 0 | N18: =Inputs!N35 -> 0 | O18: =Inputs!O35 -> 0 | P18: =Inputs!P35 -> 0 | Q18: =Inputs!Q35 -> 0 | R18: =Inputs!R35 -> 0 | S18: =Inputs!S35 -> 0 | T18: =Inputs!T35 -> 0 | U18: =Inputs!U35 -> 0 | V18: =Inputs!V35 -> 0 | W18: =Inputs!W35 -> 0 | X18: =Inputs!X35 -> 0 | Y18: =Inputs!Y35 -> 0 | Z18: =Inputs!Z35 -> 0 | AA18: =Inputs!AA35 -> 0 | AB18: =Inputs!AB35 -> 0 | AC18: =Inputs!AC35 -> 0 | AD18: =Inputs!AD35 -> 0
A19: =IF(Inputs!A36<>"",Inputs!A36,"") -> Generator | B19: $ | D19: =Inputs!D36 -> 20000000 | E19: =Inputs!E36 -> 0 | F19: =Inputs!F36 -> 0 | G19: =Inputs!G36 -> 0 | H19: =Inputs!H36 -> 0 | I19: =Inputs!I36 -> 0 | J19: =Inputs!J36 -> 0 | K19: =Inputs!K36 -> 0 | L19: =Inputs!L36 -> 0 | M19: =Inputs!M36 -> 0 | N19: =Inputs!N36 -> 0 | O19: =Inputs!O36 -> 0 | P19: =Inputs!P36 -> 0 | Q19: =Inputs!Q36 -> 0 | R19: =Inputs!R36 -> 0 | S19: =Inputs!S36 -> 0 | T19: =Inputs!T36 -> 0 | U19: =Inputs!U36 -> 0 | V19: =Inputs!V36 -> 0 | W19: =Inputs!W36 -> 0 | X19: =Inputs!X36 -> 0 | Y19: =Inputs!Y36 -> 0 | Z19: =Inputs!Z36 -> 0 | AA19: =Inputs!AA36 -> 0 | AB19: =Inputs!AB36 -> 0 | AC19: =Inputs!AC36 -> 0 | AD19: =Inputs!AD36 -> 0
A20: =IF(Inputs!A37<>"",Inputs!A37,"") -> Network | B20: $ | D20: =Inputs!D37 -> 4000000 | E20: =Inputs!E37 -> 0 | F20: =Inputs!F37 -> 0 | G20: =Inputs!G37 -> 0 | H20: =Inputs!H37 -> 0 | I20: =Inputs!I37 -> 0 | J20: =Inputs!J37 -> 0 | K20: =Inputs!K37 -> 0 | L20: =Inputs!L37 -> 0 | M20: =Inputs!M37 -> 0 | N20: =Inputs!N37 -> 0 | O20: =Inputs!O37 -> 0 | P20: =Inputs!P37 -> 0 | Q20: =Inputs!Q37 -> 0 | R20: =Inputs!R37 -> 0 | S20: =Inputs!S37 -> 0 | T20: =Inputs!T37 -> 0 | U20: =Inputs!U37 -> 0 | V20: =Inputs!V37 -> 0 | W20: =Inputs!W37 -> 0 | X20: =Inputs!X37 -> 0 | Y20: =Inputs!Y37 -> 0 | Z20: =Inputs!Z37 -> 0 | AA20: =Inputs!AA37 -> 0 | AB20: =Inputs!AB37 -> 0 | AC20: =Inputs!AC37 -> 0 | AD20: =Inputs!AD37 -> 0
A21: =IF(Inputs!A38<>"",Inputs!A38,"") -> Land | B21: $ | D21: =Inputs!D38 -> 1000000 | E21: =Inputs!E38 -> 0 | F21: =Inputs!F38 -> 0 | G21: =Inputs!G38 -> 0 | H21: =Inputs!H38 -> 0 | I21: =Inputs!I38 -> 0 | J21: =Inputs!J38 -> 0 | K21: =Inputs!K38 -> 0 | L21: =Inputs!L38 -> 0 | M21: =Inputs!M38 -> 0 | N21: =Inputs!N38 -> 0 | O21: =Inputs!O38 -> 0 | P21: =Inputs!P38 -> 0 | Q21: =Inputs!Q38 -> 0 | R21: =Inputs!R38 -> 0 | S21: =Inputs!S38 -> 0 | T21: =Inputs!T38 -> 0 | U21: =Inputs!U38 -> 0 | V21: =Inputs!V38 -> 0 | W21: =Inputs!W38 -> 0 | X21: =Inputs!X38 -> 0 | Y21: =Inputs!Y38 -> 0 | Z21: =Inputs!Z38 -> 0 | AA21: =Inputs!AA38 -> 0 | AB21: =Inputs!AB38 -> 0 | AC21: =Inputs!AC38 -> 0 | AD21: =Inputs!AD38 -> 0
A22: =IF(Inputs!A39<>"",Inputs!A39,"") -> Meters | B22: $ | D22: =Inputs!D39 -> 200000 | E22: =Inputs!E39 -> 0 | F22: =Inputs!F39 -> 0 | G22: =Inputs!G39 -> 0 | H22: =Inputs!H39 -> 0 | I22: =Inputs!I39 -> 0 | J22: =Inputs!J39 -> 0 | K22: =Inputs!K39 -> 0 | L22: =Inputs!L39 -> 0 | M22: =Inputs!M39 -> 0 | N22: =Inputs!N39 -> 0 | O22: =Inputs!O39 -> 0 | P22: =Inputs!P39 -> 0 | Q22: =Inputs!Q39 -> 0 | R22: =Inputs!R39 -> 0 | S22: =Inputs!S39 -> 0 | T22: =Inputs!T39 -> 0 | U22: =Inputs!U39 -> 0 | V22: =Inputs!V39 -> 0 | W22: =Inputs!W39 -> 0 | X22: =Inputs!X39 -> 0 | Y22: =Inputs!Y39 -> 0 | Z22: =Inputs!Z39 -> 0 | AA22: =Inputs!AA39 -> 0 | AB22: =Inputs!AB39 -> 0 | AC22: =Inputs!AC39 -> 0 | AD22: =Inputs!AD39 -> 0
A23: =IF(Inputs!A40<>"",Inputs!A40,"") ->  | B23: $ | D23: =Inputs!D40 -> 0 | E23: =Inputs!E40 -> 0 | F23: =Inputs!F40 -> 0 | G23: =Inputs!G40 -> 0 | H23: =Inputs!H40 -> 0 | I23: =Inputs!I40 -> 0 | J23: =Inputs!J40 -> 0 | K23: =Inputs!K40 -> 0 | L23: =Inputs!L40 -> 0 | M23: =Inputs!M40 -> 0 | N23: =Inputs!N40 -> 0 | O23: =Inputs!O40 -> 0 | P23: =Inputs!P40 -> 0 | Q23: =Inputs!Q40 -> 0 | R23: =Inputs!R40 -> 0 | S23: =Inputs!S40 -> 0 | T23: =Inputs!T40 -> 0 | U23: =Inputs!U40 -> 0 | V23: =Inputs!V40 -> 0 | W23: =Inputs!W40 -> 0 | X23: =Inputs!X40 -> 0 | Y23: =Inputs!Y40 -> 0 | Z23: =Inputs!Z40 -> 0 | AA23: =Inputs!AA40 -> 0 | AB23: =Inputs!AB40 -> 0 | AC23: =Inputs!AC40 -> 0 | AD23: =Inputs!AD40 -> 0
A24: =IF(Inputs!A41<>"",Inputs!A41,"") ->  | B24: $ | D24: =Inputs!D41 -> 0 | E24: =Inputs!E41 -> 0 | F24: =Inputs!F41 -> 0 | G24: =Inputs!G41 -> 0 | H24: =Inputs!H41 -> 0 | I24: =Inputs!I41 -> 0 | J24: =Inputs!J41 -> 0 | K24: =Inputs!K41 -> 0 | L24: =Inputs!L41 -> 0 | M24: =Inputs!M41 -> 0 | N24: =Inputs!N41 -> 0 | O24: =Inputs!O41 -> 0 | P24: =Inputs!P41 -> 0 | Q24: =Inputs!Q41 -> 0 | R24: =Inputs!R41 -> 0 | S24: =Inputs!S41 -> 0 | T24: =Inputs!T41 -> 0 | U24: =Inputs!U41 -> 0 | V24: =Inputs!V41 -> 0 | W24: =Inputs!W41 -> 0 | X24: =Inputs!X41 -> 0 | Y24: =Inputs!Y41 -> 0 | Z24: =Inputs!Z41 -> 0 | AA24: =Inputs!AA41 -> 0 | AB24: =Inputs!AB41 -> 0 | AC24: =Inputs!AC41 -> 0 | AD24: =Inputs!AD41 -> 0
A25: Total | B25: $ | D25: =SUM(D18:D24) -> 26200000 | E25: =SUM(E18:E24) -> 0 | F25: 0 | G25: 0 | H25: 0 | I25: 0 | J25: 0 | K25: 0 | L25: 0 | M25: 0 | N25: 0 | O25: 0 | P25: 0 | Q25: 0 | R25: 0 | S25: 0 | T25: 0 | U25: 0 | V25: 0 | W25: 0 | X25: 0 | Y25: 0 | Z25: 0 | AA25: 0 | AB25: 0 | AC25: 0 | AD25: 0
A27: Depreciation
A29: =IF(Inputs!A35<>"",Inputs!A35,"") -> Development | B29: $ | C29: Annual depreciation, calculated based on accellerated rate (using average asset lives). Assumes capital expenditure occurs midway through the year | D29: =IF(D$3>=Inputs!$D$8,IF(ISNUMBER(Inputs!$D46)=TRUE,(D7+D18/2)*1/Inputs!$D46,0),0) -> 0 | E29: =IF(E$3>=Inputs!$D$8,IF(ISNUMBER(Inputs!$D46)=TRUE,(E7+E18/2)*1/Inputs!$D46,0),0) -> 50000 | F29: =IF(F$3>=Inputs!$D$8,IF(ISNUMBER(Inputs!$D46)=TRUE,(F7+F18/2)*1/Inputs!$D46,0),0) -> 47500 | G29: =IF(G$3>=Inputs!$D$8,IF(ISNUMBER(Inputs!$D46)=TRUE,(G7+G18/2)*1/Inputs!$D46,0),0) -> 45125 | H29: =IF(H$3>=Inputs!$D$8,IF(ISNUMBER(Inputs!$D46)=TRUE,(H7+H18/2)*1/Inputs!$D46,0),0) -> 42868.75 | I29: =IF(I$3>=Inputs!$D$8,IF(ISNUMBER(Inputs!$D46)=TRUE,(I7+I18/2)*1/Inputs!$D46,0),0) -> 40725.3125 | J29: =IF(J$3>=Inputs!$D$8,IF(ISNUMBER(Inputs!$D46)=TRUE,(J7+J18/2)*1/Inputs!$D46,0),0) -> 38689.04688 | K29: =IF(K$3>=Inputs!$D$8,IF(ISNUMBER(Inputs!$D46)=TRUE,(K7+K18/2)*1/Inputs!$D46,0),0) -> 36754.59453 | L29: =IF(L$3>=Inputs!$D$8,IF(ISNUMBER(Inputs!$D46)=TRUE,(L7+L18/2)*1/Inputs!$D46,0),0) -> 34916.8648 | M29: =IF(M$3>=Inputs!$D$8,IF(ISNUMBER(Inputs!$D46)=TRUE,(M7+M18/2)*1/Inputs!$D46,0),0) -> 33171.02156 | N29: =IF(N$3>=Inputs!$D$8,IF(ISNUMBER(Inputs!$D46)=TRUE,(N7+N18/2)*1/Inputs!$D46,0),0) -> 31512.47049 | O29: =IF(O$3>=Inputs!$D$8,IF(ISNUMBER(Inputs!$D46)=TRUE,(O7+O18/2)*1/Inputs!$D46,0),0) -> 29936.84696 | P29: =IF(P$3>=Inputs!$D$8,IF(ISNUMBER(Inputs!$D46)=TRUE,(P7+P18/2)*1/Inputs!$D46,0),0) -> 28440.00461 | Q29: =IF(Q$3>=Inputs!$D$8,IF(ISNUMBER(Inputs!$D46)=TRUE,(Q7+Q18/2)*1/Inputs!$D46,0),0) -> 27018.00438 | R29: =IF(R$3>=Inputs!$D$8,IF(ISNUMBER(Inputs!$D46)=TRUE,(R7+R18/2)*1/Inputs!$D46,0),0) -> 25667.10416 | S29: =IF(S$3>=Inputs!$D$8,IF(ISNUMBER(Inputs!$D46)=TRUE,(S7+S18/2)*1/Inputs!$D46,0),0) -> 24383.74896 | T29: =IF(T$3>=Inputs!$D$8,IF(ISNUMBER(Inputs!$D46)=TRUE,(T7+T18/2)*1/Inputs!$D46,0),0) -> 23164.56151 | U29: =IF(U$3>=Inputs!$D$8,IF(ISNUMBER(Inputs!$D46)=TRUE,(U7+U18/2)*1/Inputs!$D46,0),0) -> 22006.33343 | V29: =IF(V$3>=Inputs!$D$8,IF(ISNUMBER(Inputs!$D46)=TRUE,(V7+V18/2)*1/Inputs!$D46,0),0) -> 20906.01676 | W29: =IF(W$3>=Inputs!$D$8,IF(ISNUMBER(Inputs!$D46)=TRUE,(W7+W18/2)*1/Inputs!$D46,0),0) -> 19860.71592 | X29: =IF(X$3>=Inputs!$D$8,IF(ISNUMBER(Inputs!$D46)=TRUE,(X7+X18/2)*1/Inputs!$D46,0),0) -> 18867.68013 | Y29: =IF(Y$3>=Inputs!$D$8,IF(ISNUMBER(Inputs!$D46)=TRUE,(Y7+Y18/2)*1/Inputs!$D46,0),0) -> 17924.29612 | Z29: =IF(Z$3>=Inputs!$D$8,IF(ISNUMBER(Inputs!$D46)=TRUE,(Z7+Z18/2)*1/Inputs!$D46,0),0) -> 17028.08131 | AA29: =IF(AA$3>=Inputs!$D$8,IF(ISNUMBER(Inputs!$D46)=TRUE,(AA7+AA18/2)*1/Inputs!$D46,0),0) -> 16176.67725 | AB29: =IF(AB$3>=Inputs!$D$8,IF(ISNUMBER(Inputs!$D46)=TRUE,(AB7+AB18/2)*1/Inputs!$D46,0),0) -> 15367.84339 | AC29: =IF(AC$3>=Inputs!$D$8,IF(ISNUMBER(Inputs!$D46)=TRUE,(AC7+AC18/2)*1/Inputs!$D46,0),0) -> 14599.45122 | AD29: =IF(AD$3>=Inputs!$D$8,IF(ISNUMBER(Inputs!$D46)=TRUE,(AD7+AD18/2)*1/Inputs!$D46,0),0) -> 13869.47866
A30: =IF(Inputs!A36<>"",Inputs!A36,"") -> Generator | B30: $ | D30: =IF(D$3>=Inputs!$D$8,IF(ISNUMBER(Inputs!$D47)=TRUE,(D8+D19/2)*1/Inputs!$D47,0),0) -> 0 | E30: =IF(E$3>=Inputs!$D$8,IF(ISNUMBER(Inputs!$D47)=TRUE,(E8+E19/2)*1/Inputs!$D47,0),0) -> 1000000 | F30: =IF(F$3>=Inputs!$D$8,IF(ISNUMBER(Inputs!$D47)=TRUE,(F8+F19/2)*1/Inputs!$D47,0),0) -> 950000 | G30: =IF(G$3>=Inputs!$D$8,IF(ISNUMBER(Inputs!$D47)=TRUE,(G8+G19/2)*1/Inputs!$D47,0),0) -> 902500 | H30: =IF(H$3>=Inputs!$D$8,IF(ISNUMBER(Inputs!$D47)=TRUE,(H8+H19/2)*1/Inputs!$D47,0),0) -> 857375 | I30: =IF(I$3>=Inputs!$D$8,IF(ISNUMBER(Inputs!$D47)=TRUE,(I8+I19/2)*1/Inputs!$D47,0),0) -> 814506.25 | J30: =IF(J$3>=Inputs!$D$8,IF(ISNUMBER(Inputs!$D47)=TRUE,(J8+J19/2)*1/Inputs!$D47,0),0) -> 773780.9375 | K30: =IF(K$3>=Inputs!$D$8,IF(ISNUMBER(Inputs!$D47)=TRUE,(K8+K19/2)*1/Inputs!$D47,0),0) -> 735091.8906 | L30: =IF(L$3>=Inputs!$D$8,IF(ISNUMBER(Inputs!$D47)=TRUE,(L8+L19/2)*1/Inputs!$D47,0),0) -> 698337.2961 | M30: =IF(M$3>=Inputs!$D$8,IF(ISNUMBER(Inputs!$D47)=TRUE,(M8+M19/2)*1/Inputs!$D47,0),0) -> 663420.4313 | N30: =IF(N$3>=Inputs!$D$8,IF(ISNUMBER(Inputs!$D47)=TRUE,(N8+N19/2)*1/Inputs!$D47,0),0) -> 630249.4097 | O30: =IF(O$3>=Inputs!$D$8,IF(ISNUMBER(Inputs!$D47)=TRUE,(O8+O19/2)*1/Inputs!$D47,0),0) -> 598736.9392 | P30: =IF(P$3>=Inputs!$D$8,IF(ISNUMBER(Inputs!$D47)=TRUE,(P8+P19/2)*1/Inputs!$D47,0),0) -> 568800.0923 | Q30: =IF(Q$3>=Inputs!$D$8,IF(ISNUMBER(Inputs!$D47)=TRUE,(Q8+Q19/2)*1/Inputs!$D47,0),0) -> 540360.0877 | R30: =IF(R$3>=Inputs!$D$8,IF(ISNUMBER(Inputs!$D47)=TRUE,(R8+R19/2)*1/Inputs!$D47,0),0) -> 513342.0833 | S30: =IF(S$3>=Inputs!$D$8,IF(ISNUMBER(Inputs!$D47)=TRUE,(S8+S19/2)*1/Inputs!$D47,0),0) -> 487674.9791 | T30: =IF(T$3>=Inputs!$D$8,IF(ISNUMBER(Inputs!$D47)=TRUE,(T8+T19/2)*1/Inputs!$D47,0),0) -> 463291.2302 | U30: =IF(U$3>=Inputs!$D$8,IF(ISNUMBER(Inputs!$D47)=TRUE,(U8+U19/2)*1/Inputs!$D47,0),0) -> 440126.6687 | V30: =IF(V$3>=Inputs!$D$8,IF(ISNUMBER(Inputs!$D47)=TRUE,(V8+V19/2)*1/Inputs!$D47,0),0) -> 418120.3352 | W30: =IF(W$3>=Inputs!$D$8,IF(ISNUMBER(Inputs!$D47)=TRUE,(W8+W19/2)*1/Inputs!$D47,0),0) -> 397214.3185 | X30: =IF(X$3>=Inputs!$D$8,IF(ISNUMBER(Inputs!$D47)=TRUE,(X8+X19/2)*1/Inputs!$D47,0),0) -> 377353.6025 | Y30: =IF(Y$3>=Inputs!$D$8,IF(ISNUMBER(Inputs!$D47)=TRUE,(Y8+Y19/2)*1/Inputs!$D47,0),0) -> 358485.9224 | Z30: =IF(Z$3>=Inputs!$D$8,IF(ISNUMBER(Inputs!$D47)=TRUE,(Z8+Z19/2)*1/Inputs!$D47,0),0) -> 340561.6263 | AA30: =IF(AA$3>=Inputs!$D$8,IF(ISNUMBER(Inputs!$D47)=TRUE,(AA8+AA19/2)*1/Inputs!$D47,0),0) -> 323533.545 | AB30: =IF(AB$3>=Inputs!$D$8,IF(ISNUMBER(Inputs!$D47)=TRUE,(AB8+AB19/2)*1/Inputs!$D47,0),0) -> 307356.8677 | AC30: =IF(AC$3>=Inputs!$D$8,IF(ISNUMBER(Inputs!$D47)=TRUE,(AC8+AC19/2)*1/Inputs!$D47,0),0) -> 291989.0243 | AD30: =IF(AD$3>=Inputs!$D$8,IF(ISNUMBER(Inputs!$D47)=TRUE,(AD8+AD19/2)*1/Inputs!$D47,0),0) -> 277389.5731
A31: =IF(Inputs!A37<>"",Inputs!A37,"") -> Network | B31: $ | D31: =IF(D$3>=Inputs!$D$8,IF(ISNUMBER(Inputs!$D48)=TRUE,(D9+D20/2)*1/Inputs!$D48,0),0) -> 0 | E31: =IF(E$3>=Inputs!$D$8,IF(ISNUMBER(Inputs!$D48)=TRUE,(E9+E20/2)*1/Inputs!$D48,0),0) -> 200000 | F31: =IF(F$3>=Inputs!$D$8,IF(ISNUMBER(Inputs!$D48)=TRUE,(F9+F20/2)*1/Inputs!$D48,0),0) -> 190000 | G31: =IF(G$3>=Inputs!$D$8,IF(ISNUMBER(Inputs!$D48)=TRUE,(G9+G20/2)*1/Inputs!$D48,0),0) -> 180500 | H31: =IF(H$3>=Inputs!$D$8,IF(ISNUMBER(Inputs!$D48)=TRUE,(H9+H20/2)*1/Inputs!$D48,0),0) -> 171475 | I31: =IF(I$3>=Inputs!$D$8,IF(ISNUMBER(Inputs!$D48)=TRUE,(I9+I20/2)*1/Inputs!$D48,0),0) -> 162901.25 | J31: =IF(J$3>=Inputs!$D$8,IF(ISNUMBER(Inputs!$D48)=TRUE,(J9+J20/2)*1/Inputs!$D48,0),0) -> 154756.1875 | K31: =IF(K$3>=Inputs!$D$8,IF(ISNUMBER(Inputs!$D48)=TRUE,(K9+K20/2)*1/Inputs!$D48,0),0) -> 147018.3781 | L31: =IF(L$3>=Inputs!$D$8,IF(ISNUMBER(Inputs!$D48)=TRUE,(L9+L20/2)*1/Inputs!$D48,0),0) -> 139667.4592 | M31: =IF(M$3>=Inputs!$D$8,IF(ISNUMBER(Inputs!$D48)=TRUE,(M9+M20/2)*1/Inputs!$D48,0),0) -> 132684.0863 | N31: =IF(N$3>=Inputs!$D$8,IF(ISNUMBER(Inputs!$D48)=TRUE,(N9+N20/2)*1/Inputs!$D48,0),0) -> 126049.8819 | O31: =IF(O$3>=Inputs!$D$8,IF(ISNUMBER(Inputs!$D48)=TRUE,(O9+O20/2)*1/Inputs!$D48,0),0) -> 119747.3878 | P31: =IF(P$3>=Inputs!$D$8,IF(ISNUMBER(Inputs!$D48)=TRUE,(P9+P20/2)*1/Inputs!$D48,0),0) -> 113760.0185 | Q31: =IF(Q$3>=Inputs!$D$8,IF(ISNUMBER(Inputs!$D48)=TRUE,(Q9+Q20/2)*1/Inputs!$D48,0),0) -> 108072.0175 | R31: =IF(R$3>=Inputs!$D$8,IF(ISNUMBER(Inputs!$D48)=TRUE,(R9+R20/2)*1/Inputs!$D48,0),0) -> 102668.4167 | S31: =IF(S$3>=Inputs!$D$8,IF(ISNUMBER(Inputs!$D48)=TRUE,(S9+S20/2)*1/Inputs!$D48,0),0) -> 97534.99582 | T31: =IF(T$3>=Inputs!$D$8,IF(ISNUMBER(Inputs!$D48)=TRUE,(T9+T20/2)*1/Inputs!$D48,0),0) -> 92658.24603 | U31: =IF(U$3>=Inputs!$D$8,IF(ISNUMBER(Inputs!$D48)=TRUE,(U9+U20/2)*1/Inputs!$D48,0),0) -> 88025.33373 | V31: =IF(V$3>=Inputs!$D$8,IF(ISNUMBER(Inputs!$D48)=TRUE,(V9+V20/2)*1/Inputs!$D48,0),0) -> 83624.06704 | W31: =IF(W$3>=Inputs!$D$8,IF(ISNUMBER(Inputs!$D48)=TRUE,(W9+W20/2)*1/Inputs!$D48,0),0) -> 79442.86369 | X31: =IF(X$3>=Inputs!$D$8,IF(ISNUMBER(Inputs!$D48)=TRUE,(X9+X20/2)*1/Inputs!$D48,0),0) -> 75470.72051 | Y31: =IF(Y$3>=Inputs!$D$8,IF(ISNUMBER(Inputs!$D48)=TRUE,(Y9+Y20/2)*1/Inputs!$D48,0),0) -> 71697.18448 | Z31: =IF(Z$3>=Inputs!$D$8,IF(ISNUMBER(Inputs!$D48)=TRUE,(Z9+Z20/2)*1/Inputs!$D48,0),0) -> 68112.32526 | AA31: =IF(AA$3>=Inputs!$D$8,IF(ISNUMBER(Inputs!$D48)=TRUE,(AA9+AA20/2)*1/Inputs!$D48,0),0) -> 64706.70899 | AB31: =IF(AB$3>=Inputs!$D$8,IF(ISNUMBER(Inputs!$D48)=TRUE,(AB9+AB20/2)*1/Inputs!$D48,0),0) -> 61471.37355 | AC31: =IF(AC$3>=Inputs!$D$8,IF(ISNUMBER(Inputs!$D48)=TRUE,(AC9+AC20/2)*1/Inputs!$D48,0),0) -> 58397.80487 | AD31: =IF(AD$3>=Inputs!$D$8,IF(ISNUMBER(Inputs!$D48)=TRUE,(AD9+AD20/2)*1/Inputs!$D48,0),0) -> 55477.91462
A32: =IF(Inputs!A38<>"",Inputs!A38,"") -> Land | B32: $ | D32: =IF(D$3>=Inputs!$D$8,IF(ISNUMBER(Inputs!$D49)=TRUE,(D10+D21/2)*1/Inputs!$D49,0),0) -> 0 | E32: =IF(E$3>=Inputs!$D$8,IF(ISNUMBER(Inputs!$D49)=TRUE,(E10+E21/2)*1/Inputs!$D49,0),0) -> 50000 | F32: =IF(F$3>=Inputs!$D$8,IF(ISNUMBER(Inputs!$D49)=TRUE,(F10+F21/2)*1/Inputs!$D49,0),0) -> 47500 | G32: =IF(G$3>=Inputs!$D$8,IF(ISNUMBER(Inputs!$D49)=TRUE,(G10+G21/2)*1/Inputs!$D49,0),0) -> 45125 | H32: =IF(H$3>=Inputs!$D$8,IF(ISNUMBER(Inputs!$D49)=TRUE,(H10+H21/2)*1/Inputs!$D49,0),0) -> 42868.75 | I32: =IF(I$3>=Inputs!$D$8,IF(ISNUMBER(Inputs!$D49)=TRUE,(I10+I21/2)*1/Inputs!$D49,0),0) -> 40725.3125 | J32: =IF(J$3>=Inputs!$D$8,IF(ISNUMBER(Inputs!$D49)=TRUE,(J10+J21/2)*1/Inputs!$D49,0),0) -> 38689.04688 | K32: =IF(K$3>=Inputs!$D$8,IF(ISNUMBER(Inputs!$D49)=TRUE,(K10+K21/2)*1/Inputs!$D49,0),0) -> 36754.59453 | L32: =IF(L$3>=Inputs!$D$8,IF(ISNUMBER(Inputs!$D49)=TRUE,(L10+L21/2)*1/Inputs!$D49,0),0) -> 34916.8648 | M32: =IF(M$3>=Inputs!$D$8,IF(ISNUMBER(Inputs!$D49)=TRUE,(M10+M21/2)*1/Inputs!$D49,0),0) -> 33171.02156 | N32: =IF(N$3>=Inputs!$D$8,IF(ISNUMBER(Inputs!$D49)=TRUE,(N10+N21/2)*1/Inputs!$D49,0),0) -> 31512.47049 | O32: =IF(O$3>=Inputs!$D$8,IF(ISNUMBER(Inputs!$D49)=TRUE,(O10+O21/2)*1/Inputs!$D49,0),0) -> 29936.84696 | P32: =IF(P$3>=Inputs!$D$8,IF(ISNUMBER(Inputs!$D49)=TRUE,(P10+P21/2)*1/Inputs!$D49,0),0) -> 28440.00461 | Q32: =IF(Q$3>=Inputs!$D$8,IF(ISNUMBER(Inputs!$D49)=TRUE,(Q10+Q21/2)*1/Inputs!$D49,0),0) -> 27018.00438 | R32: =IF(R$3>=Inputs!$D$8,IF(ISNUMBER(Inputs!$D49)=TRUE,(R10+R21/2)*1/Inputs!$D49,0),0) -> 25667.10416 | S32: =IF(S$3>=Inputs!$D$8,IF(ISNUMBER(Inputs!$D49)=TRUE,(S10+S21/2)*1/Inputs!$D49,0),0) -> 24383.74896 | T32: =IF(T$3>=Inputs!$D$8,IF(ISNUMBER(Inputs!$D49)=TRUE,(T10+T21/2)*1/Inputs!$D49,0),0) -> 23164.56151 | U32: =IF(U$3>=Inputs!$D$8,IF(ISNUMBER(Inputs!$D49)=TRUE,(U10+U21/2)*1/Inputs!$D49,0),0) -> 22006.33343 | V32: =IF(V$3>=Inputs!$D$8,IF(ISNUMBER(Inputs!$D49)=TRUE,(V10+V21/2)*1/Inputs!$D49,0),0) -> 20906.01676 | W32: =IF(W$3>=Inputs!$D$8,IF(ISNUMBER(Inputs!$D49)=TRUE,(W10+W21/2)*1/Inputs!$D49,0),0) -> 19860.71592 | X32: =IF(X$3>=Inputs!$D$8,IF(ISNUMBER(Inputs!$D49)=TRUE,(X10+X21/2)*1/Inputs!$D49,0),0) -> 18867.68013 | Y32: =IF(Y$3>=Inputs!$D$8,IF(ISNUMBER(Inputs!$D49)=TRUE,(Y10+Y21/2)*1/Inputs!$D49,0),0) -> 17924.29612 | Z32: =IF(Z$3>=Inputs!$D$8,IF(ISNUMBER(Inputs!$D49)=TRUE,(Z10+Z21/2)*1/Inputs!$D49,0),0) -> 17028.08131 | AA32: =IF(AA$3>=Inputs!$D$8,IF(ISNUMBER(Inputs!$D49)=TRUE,(AA10+AA21/2)*1/Inputs!$D49,0),0) -> 16176.67725 | AB32: =IF(AB$3>=Inputs!$D$8,IF(ISNUMBER(Inputs!$D49)=TRUE,(AB10+AB21/2)*1/Inputs!$D49,0),0) -> 15367.84339 | AC32: =IF(AC$3>=Inputs!$D$8,IF(ISNUMBER(Inputs!$D49)=TRUE,(AC10+AC21/2)*1/Inputs!$D49,0),0) -> 14599.45122 | AD32: =IF(AD$3>=Inputs!$D$8,IF(ISNUMBER(Inputs!$D49)=TRUE,(AD10+AD21/2)*1/Inputs!$D49,0),0) -> 13869.47866
A33: =IF(Inputs!A39<>"",Inputs!A39,"") -> Meters | B33: $ | D33: =IF(D$3>=Inputs!$D$8,IF(ISNUMBER(Inputs!$D50)=TRUE,(D11+D22/2)*1/Inputs!$D50,0),0) -> 0 | E33: =IF(E$3>=Inputs!$D$8,IF(ISNUMBER(Inputs!$D50)=TRUE,(E11+E22/2)*1/Inputs!$D50,0),0) -> 10000 | F33: =IF(F$3>=Inputs!$D$8,IF(ISNUMBER(Inputs!$D50)=TRUE,(F11+F22/2)*1/Inputs!$D50,0),0) -> 9500 | G33: =IF(G$3>=Inputs!$D$8,IF(ISNUMBER(Inputs!$D50)=TRUE,(G11+G22/2)*1/Inputs!$D50,0),0) -> 9025 | H33: =IF(H$3>=Inputs!$D$8,IF(ISNUMBER(Inputs!$D50)=TRUE,(H11+H22/2)*1/Inputs!$D50,0),0) -> 8573.75 | I33: =IF(I$3>=Inputs!$D$8,IF(ISNUMBER(Inputs!$D50)=TRUE,(I11+I22/2)*1/Inputs!$D50,0),0) -> 8145.0625 | J33: =IF(J$3>=Inputs!$D$8,IF(ISNUMBER(Inputs!$D50)=TRUE,(J11+J22/2)*1/Inputs!$D50,0),0) -> 7737.809375 | K33: =IF(K$3>=Inputs!$D$8,IF(ISNUMBER(Inputs!$D50)=TRUE,(K11+K22/2)*1/Inputs!$D50,0),0) -> 7350.918906 | L33: =IF(L$3>=Inputs!$D$8,IF(ISNUMBER(Inputs!$D50)=TRUE,(L11+L22/2)*1/Inputs!$D50,0),0) -> 6983.372961 | M33: =IF(M$3>=Inputs!$D$8,IF(ISNUMBER(Inputs!$D50)=TRUE,(M11+M22/2)*1/Inputs!$D50,0),0) -> 6634.204313 | N33: =IF(N$3>=Inputs!$D$8,IF(ISNUMBER(Inputs!$D50)=TRUE,(N11+N22/2)*1/Inputs!$D50,0),0) -> 6302.494097 | O33: =IF(O$3>=Inputs!$D$8,IF(ISNUMBER(Inputs!$D50)=TRUE,(O11+O22/2)*1/Inputs!$D50,0),0) -> 5987.369392 | P33: =IF(P$3>=Inputs!$D$8,IF(ISNUMBER(Inputs!$D50)=TRUE,(P11+P22/2)*1/Inputs!$D50,0),0) -> 5688.000923 | Q33: =IF(Q$3>=Inputs!$D$8,IF(ISNUMBER(Inputs!$D50)=TRUE,(Q11+Q22/2)*1/Inputs!$D50,0),0) -> 5403.600877 | R33: =IF(R$3>=Inputs!$D$8,IF(ISNUMBER(Inputs!$D50)=TRUE,(R11+R22/2)*1/Inputs!$D50,0),0) -> 5133.420833 | S33: =IF(S$3>=Inputs!$D$8,IF(ISNUMBER(Inputs!$D50)=TRUE,(S11+S22/2)*1/Inputs!$D50,0),0) -> 4876.749791 | T33: =IF(T$3>=Inputs!$D$8,IF(ISNUMBER(Inputs!$D50)=TRUE,(T11+T22/2)*1/Inputs!$D50,0),0) -> 4632.912302 | U33: =IF(U$3>=Inputs!$D$8,IF(ISNUMBER(Inputs!$D50)=TRUE,(U11+U22/2)*1/Inputs!$D50,0),0) -> 4401.266687 | V33: =IF(V$3>=Inputs!$D$8,IF(ISNUMBER(Inputs!$D50)=TRUE,(V11+V22/2)*1/Inputs!$D50,0),0) -> 4181.203352 | W33: =IF(W$3>=Inputs!$D$8,IF(ISNUMBER(Inputs!$D50)=TRUE,(W11+W22/2)*1/Inputs!$D50,0),0) -> 3972.143185 | X33: =IF(X$3>=Inputs!$D$8,IF(ISNUMBER(Inputs!$D50)=TRUE,(X11+X22/2)*1/Inputs!$D50,0),0) -> 3773.536025 | Y33: =IF(Y$3>=Inputs!$D$8,IF(ISNUMBER(Inputs!$D50)=TRUE,(Y11+Y22/2)*1/Inputs!$D50,0),0) -> 3584.859224 | Z33: =IF(Z$3>=Inputs!$D$8,IF(ISNUMBER(Inputs!$D50)=TRUE,(Z11+Z22/2)*1/Inputs!$D50,0),0) -> 3405.616263 | AA33: =IF(AA$3>=Inputs!$D$8,IF(ISNUMBER(Inputs!$D50)=TRUE,(AA11+AA22/2)*1/Inputs!$D50,0),0) -> 3235.33545 | AB33: =IF(AB$3>=Inputs!$D$8,IF(ISNUMBER(Inputs!$D50)=TRUE,(AB11+AB22/2)*1/Inputs!$D50,0),0) -> 3073.568677 | AC33: =IF(AC$3>=Inputs!$D$8,IF(ISNUMBER(Inputs!$D50)=TRUE,(AC11+AC22/2)*1/Inputs!$D50,0),0) -> 2919.890243 | AD33: =IF(AD$3>=Inputs!$D$8,IF(ISNUMBER(Inputs!$D50)=TRUE,(AD11+AD22/2)*1/Inputs!$D50,0),0) -> 2773.895731
A34: =IF(Inputs!A40<>"",Inputs!A40,"") ->  | B34: $ | D34: =IF(D$3>=Inputs!$D$8,IF(ISNUMBER(Inputs!$D51)=TRUE,(D12+D23/2)*1/Inputs!$D51,0),0) -> 0 | E34: =IF(E$3>=Inputs!$D$8,IF(ISNUMBER(Inputs!$D51)=TRUE,(E12+E23/2)*1/Inputs!$D51,0),0) -> 0 | F34: =IF(F$3>=Inputs!$D$8,IF(ISNUMBER(Inputs!$D51)=TRUE,(F12+F23/2)*1/Inputs!$D51,0),0) -> 0 | G34: =IF(G$3>=Inputs!$D$8,IF(ISNUMBER(Inputs!$D51)=TRUE,(G12+G23/2)*1/Inputs!$D51,0),0) -> 0 | H34: =IF(H$3>=Inputs!$D$8,IF(ISNUMBER(Inputs!$D51)=TRUE,(H12+H23/2)*1/Inputs!$D51,0),0) -> 0 | I34: =IF(I$3>=Inputs!$D$8,IF(ISNUMBER(Inputs!$D51)=TRUE,(I12+I23/2)*1/Inputs!$D51,0),0) -> 0 | J34: =IF(J$3>=Inputs!$D$8,IF(ISNUMBER(Inputs!$D51)=TRUE,(J12+J23/2)*1/Inputs!$D51,0),0) -> 0 | K34: =IF(K$3>=Inputs!$D$8,IF(ISNUMBER(Inputs!$D51)=TRUE,(K12+K23/2)*1/Inputs!$D51,0),0) -> 0 | L34: =IF(L$3>=Inputs!$D$8,IF(ISNUMBER(Inputs!$D51)=TRUE,(L12+L23/2)*1/Inputs!$D51,0),0) -> 0 | M34: =IF(M$3>=Inputs!$D$8,IF(ISNUMBER(Inputs!$D51)=TRUE,(M12+M23/2)*1/Inputs!$D51,0),0) -> 0 | N34: =IF(N$3>=Inputs!$D$8,IF(ISNUMBER(Inputs!$D51)=TRUE,(N12+N23/2)*1/Inputs!$D51,0),0) -> 0 | O34: =IF(O$3>=Inputs!$D$8,IF(ISNUMBER(Inputs!$D51)=TRUE,(O12+O23/2)*1/Inputs!$D51,0),0) -> 0 | P34: =IF(P$3>=Inputs!$D$8,IF(ISNUMBER(Inputs!$D51)=TRUE,(P12+P23/2)*1/Inputs!$D51,0),0) -> 0 | Q34: =IF(Q$3>=Inputs!$D$8,IF(ISNUMBER(Inputs!$D51)=TRUE,(Q12+Q23/2)*1/Inputs!$D51,0),0) -> 0 | R34: =IF(R$3>=Inputs!$D$8,IF(ISNUMBER(Inputs!$D51)=TRUE,(R12+R23/2)*1/Inputs!$D51,0),0) -> 0 | S34: =IF(S$3>=Inputs!$D$8,IF(ISNUMBER(Inputs!$D51)=TRUE,(S12+S23/2)*1/Inputs!$D51,0),0) -> 0 | T34: =IF(T$3>=Inputs!$D$8,IF(ISNUMBER(Inputs!$D51)=TRUE,(T12+T23/2)*1/Inputs!$D51,0),0) -> 0 | U34: =IF(U$3>=Inputs!$D$8,IF(ISNUMBER(Inputs!$D51)=TRUE,(U12+U23/2)*1/Inputs!$D51,0),0) -> 0 | V34: =IF(V$3>=Inputs!$D$8,IF(ISNUMBER(Inputs!$D51)=TRUE,(V12+V23/2)*1/Inputs!$D51,0),0) -> 0 | W34: =IF(W$3>=Inputs!$D$8,IF(ISNUMBER(Inputs!$D51)=TRUE,(W12+W23/2)*1/Inputs!$D51,0),0) -> 0 | X34: =IF(X$3>=Inputs!$D$8,IF(ISNUMBER(Inputs!$D51)=TRUE,(X12+X23/2)*1/Inputs!$D51,0),0) -> 0 | Y34: =IF(Y$3>=Inputs!$D$8,IF(ISNUMBER(Inputs!$D51)=TRUE,(Y12+Y23/2)*1/Inputs!$D51,0),0) -> 0 | Z34: =IF(Z$3>=Inputs!$D$8,IF(ISNUMBER(Inputs!$D51)=TRUE,(Z12+Z23/2)*1/Inputs!$D51,0),0) -> 0 | AA34: =IF(AA$3>=Inputs!$D$8,IF(ISNUMBER(Inputs!$D51)=TRUE,(AA12+AA23/2)*1/Inputs!$D51,0),0) -> 0 | AB34: =IF(AB$3>=Inputs!$D$8,IF(ISNUMBER(Inputs!$D51)=TRUE,(AB12+AB23/2)*1/Inputs!$D51,0),0) -> 0 | AC34: =IF(AC$3>=Inputs!$D$8,IF(ISNUMBER(Inputs!$D51)=TRUE,(AC12+AC23/2)*1/Inputs!$D51,0),0) -> 0 | AD34: =IF(AD$3>=Inputs!$D$8,IF(ISNUMBER(Inputs!$D51)=TRUE,(AD12+AD23/2)*1/Inputs!$D51,0),0) -> 0
A35: =IF(Inputs!A41<>"",Inputs!A41,"") ->  | B35: $ | D35: =IF(D$3>=Inputs!$D$8,IF(ISNUMBER(Inputs!$D52)=TRUE,(D13+D24/2)*1/Inputs!$D52,0),0) -> 0 | E35: =IF(E$3>=Inputs!$D$8,IF(ISNUMBER(Inputs!$D52)=TRUE,(E13+E24/2)*1/Inputs!$D52,0),0) -> 0 | F35: =IF(F$3>=Inputs!$D$8,IF(ISNUMBER(Inputs!$D52)=TRUE,(F13+F24/2)*1/Inputs!$D52,0),0) -> 0 | G35: =IF(G$3>=Inputs!$D$8,IF(ISNUMBER(Inputs!$D52)=TRUE,(G13+G24/2)*1/Inputs!$D52,0),0) -> 0 | H35: =IF(H$3>=Inputs!$D$8,IF(ISNUMBER(Inputs!$D52)=TRUE,(H13+H24/2)*1/Inputs!$D52,0),0) -> 0 | I35: =IF(I$3>=Inputs!$D$8,IF(ISNUMBER(Inputs!$D52)=TRUE,(I13+I24/2)*1/Inputs!$D52,0),0) -> 0 | J35: =IF(J$3>=Inputs!$D$8,IF(ISNUMBER(Inputs!$D52)=TRUE,(J13+J24/2)*1/Inputs!$D52,0),0) -> 0 | K35: =IF(K$3>=Inputs!$D$8,IF(ISNUMBER(Inputs!$D52)=TRUE,(K13+K24/2)*1/Inputs!$D52,0),0) -> 0 | L35: =IF(L$3>=Inputs!$D$8,IF(ISNUMBER(Inputs!$D52)=TRUE,(L13+L24/2)*1/Inputs!$D52,0),0) -> 0 | M35: =IF(M$3>=Inputs!$D$8,IF(ISNUMBER(Inputs!$D52)=TRUE,(M13+M24/2)*1/Inputs!$D52,0),0) -> 0 | N35: =IF(N$3>=Inputs!$D$8,IF(ISNUMBER(Inputs!$D52)=TRUE,(N13+N24/2)*1/Inputs!$D52,0),0) -> 0 | O35: =IF(O$3>=Inputs!$D$8,IF(ISNUMBER(Inputs!$D52)=TRUE,(O13+O24/2)*1/Inputs!$D52,0),0) -> 0 | P35: =IF(P$3>=Inputs!$D$8,IF(ISNUMBER(Inputs!$D52)=TRUE,(P13+P24/2)*1/Inputs!$D52,0),0) -> 0 | Q35: =IF(Q$3>=Inputs!$D$8,IF(ISNUMBER(Inputs!$D52)=TRUE,(Q13+Q24/2)*1/Inputs!$D52,0),0) -> 0 | R35: =IF(R$3>=Inputs!$D$8,IF(ISNUMBER(Inputs!$D52)=TRUE,(R13+R24/2)*1/Inputs!$D52,0),0) -> 0 | S35: =IF(S$3>=Inputs!$D$8,IF(ISNUMBER(Inputs!$D52)=TRUE,(S13+S24/2)*1/Inputs!$D52,0),0) -> 0 | T35: =IF(T$3>=Inputs!$D$8,IF(ISNUMBER(Inputs!$D52)=TRUE,(T13+T24/2)*1/Inputs!$D52,0),0) -> 0 | U35: =IF(U$3>=Inputs!$D$8,IF(ISNUMBER(Inputs!$D52)=TRUE,(U13+U24/2)*1/Inputs!$D52,0),0) -> 0 | V35: =IF(V$3>=Inputs!$D$8,IF(ISNUMBER(Inputs!$D52)=TRUE,(V13+V24/2)*1/Inputs!$D52,0),0) -> 0 | W35: =IF(W$3>=Inputs!$D$8,IF(ISNUMBER(Inputs!$D52)=TRUE,(W13+W24/2)*1/Inputs!$D52,0),0) -> 0 | X35: =IF(X$3>=Inputs!$D$8,IF(ISNUMBER(Inputs!$D52)=TRUE,(X13+X24/2)*1/Inputs!$D52,0),0) -> 0 | Y35: =IF(Y$3>=Inputs!$D$8,IF(ISNUMBER(Inputs!$D52)=TRUE,(Y13+Y24/2)*1/Inputs!$D52,0),0) -> 0 | Z35: =IF(Z$3>=Inputs!$D$8,IF(ISNUMBER(Inputs!$D52)=TRUE,(Z13+Z24/2)*1/Inputs!$D52,0),0) -> 0 | AA35: =IF(AA$3>=Inputs!$D$8,IF(ISNUMBER(Inputs!$D52)=TRUE,(AA13+AA24/2)*1/Inputs!$D52,0),0) -> 0 | AB35: =IF(AB$3>=Inputs!$D$8,IF(ISNUMBER(Inputs!$D52)=TRUE,(AB13+AB24/2)*1/Inputs!$D52,0),0) -> 0 | AC35: =IF(AC$3>=Inputs!$D$8,IF(ISNUMBER(Inputs!$D52)=TRUE,(AC13+AC24/2)*1/Inputs!$D52,0),0) -> 0 | AD35: =IF(AD$3>=Inputs!$D$8,IF(ISNUMBER(Inputs!$D52)=TRUE,(AD13+AD24/2)*1/Inputs!$D52,0),0) -> 0
A36: Total | B36: $ | D36: =SUM(D29:D35) -> 0 | E36: 1310000 | F36: 1244500 | G36: =SUM(G29:G35) -> 1182275 | H36: 1123161.25 | I36: 1067003.188 | J36: 1013653.028 | K36: 962970.3767 | L36: 914821.8579 | M36: 869080.765 | N36: 825626.7267 | O36: 784345.3904 | P36: 745128.1209 | Q36: 707871.7148 | R36: 672478.1291 | S36: 638854.2226 | T36: 606911.5115 | U36: 576565.9359 | V36: 547737.6391 | W36: 520350.7572 | X36: 494333.2193 | Y36: 469616.5584 | Z36: 446135.7304 | AA36: 423828.9439 | AB36: 402637.4967 | AC36: 382505.6219 | AD36: 363380.3408
A38: Closing asset base
A40: =IF(Inputs!A35<>"",Inputs!A35,"") -> Development | B40: $ | C40: The depreciated value of assets as at the end of the year | D40: =D7+D18-D29 -> 1000000 | E40: =E7+E18-E29 -> 950000 | F40: 902500 | G40: 857375 | H40: 814506.25 | I40: 773780.9375 | J40: 735091.8906 | K40: 698337.2961 | L40: 663420.4313 | M40: 630249.4097 | N40: 598736.9392 | O40: 568800.0923 | P40: 540360.0877 | Q40: 513342.0833 | R40: 487674.9791 | S40: 463291.2302 | T40: 440126.6687 | U40: 418120.3352 | V40: 397214.3185 | W40: 377353.6025 | X40: 358485.9224 | Y40: 340561.6263 | Z40: 323533.545 | AA40: 307356.8677 | AB40: 291989.0243 | AC40: 277389.5731 | AD40: 263520.0945
A41: =IF(Inputs!A36<>"",Inputs!A36,"") -> Generator | B41: $ | D41: =D8+D19-D30 -> 20000000 | E41: 19000000 | F41: 18050000 | G41: 17147500 | H41: 16290125 | I41: 15475618.75 | J41: 14701837.81 | K41: 13966745.92 | L41: 13268408.63 | M41: 12604988.19 | N41: 11974738.78 | O41: 11376001.85 | P41: 10807201.75 | Q41: 10266841.67 | R41: 9753499.582 | S41: 9265824.603 | T41: 8802533.373 | U41: 8362406.704 | V41: 7944286.369 | W41: 7547072.051 | X41: 7169718.448 | Y41: 6811232.526 | Z41: 6470670.899 | AA41: 6147137.355 | AB41: 5839780.487 | AC41: 5547791.462 | AD41: 5270401.889
A42: =IF(Inputs!A37<>"",Inputs!A37,"") -> Network | B42: $ | D42: 4000000 | E42: 3800000 | F42: 3610000 | G42: 3429500 | H42: 3258025 | I42: 3095123.75 | J42: 2940367.562 | K42: 2793349.184 | L42: 2653681.725 | M42: 2520997.639 | N42: 2394947.757 | O42: 2275200.369 | P42: 2161440.351 | Q42: 2053368.333 | R42: 1950699.916 | S42: 1853164.921 | T42: 1760506.675 | U42: 1672481.341 | V42: 1588857.274 | W42: 1509414.41 | X42: 1433943.69 | Y42: 1362246.505 | Z42: 1294134.18 | AA42: 1229427.471 | AB42: 1167956.097 | AC42: 1109558.292 | AD42: 1054080.378
A43: =IF(Inputs!A38<>"",Inputs!A38,"") -> Land | B43: $ | D43: 1000000 | E43: 950000 | F43: 902500 | G43: 857375 | H43: 814506.25 | I43: 773780.9375 | J43: 735091.8906 | K43: 698337.2961 | L43: 663420.4313 | M43: 630249.4097 | N43: 598736.9392 | O43: 568800.0923 | P43: 540360.0877 | Q43: 513342.0833 | R43: 487674.9791 | S43: 463291.2302 | T43: 440126.6687 | U43: 418120.3352 | V43: 397214.3185 | W43: 377353.6025 | X43: 358485.9224 | Y43: 340561.6263 | Z43: 323533.545 | AA43: 307356.8677 | AB43: 291989.0243 | AC43: 277389.5731 | AD43: 263520.0945
A44: =IF(Inputs!A39<>"",Inputs!A39,"") -> Meters | B44: $ | D44: 200000 | E44: 190000 | F44: 180500 | G44: 171475 | H44: 162901.25 | I44: 154756.1875 | J44: 147018.3781 | K44: 139667.4592 | L44: 132684.0863 | M44: 126049.8819 | N44: 119747.3878 | O44: 113760.0185 | P44: 108072.0175 | Q44: 102668.4167 | R44: 97534.99582 | S44: 92658.24603 | T44: 88025.33373 | U44: 83624.06704 | V44: 79442.86369 | W44: 75470.72051 | X44: 71697.18448 | Y44: 68112.32526 | Z44: 64706.70899 | AA44: 61471.37355 | AB44: 58397.80487 | AC44: 55477.91462 | AD44: 52704.01889
A45: =IF(Inputs!A40<>"",Inputs!A40,"") ->  | B45: $ | D45: 0 | E45: 0 | F45: 0 | G45: 0 | H45: 0 | I45: 0 | J45: 0 | K45: 0 | L45: 0 | M45: 0 | N45: 0 | O45: 0 | P45: 0 | Q45: 0 | R45: 0 | S45: 0 | T45: 0 | U45: 0 | V45: 0 | W45: 0 | X45: 0 | Y45: 0 | Z45: 0 | AA45: 0 | AB45: 0 | AC45: 0 | AD45: 0
A46: =IF(Inputs!A41<>"",Inputs!A41,"") ->  | B46: $ | D46: 0 | E46: 0 | F46: 0 | G46: 0 | H46: 0 | I46: 0 | J46: 0 | K46: 0 | L46: 0 | M46: 0 | N46: 0 | O46: 0 | P46: 0 | Q46: 0 | R46: 0 | S46: 0 | T46: 0 | U46: 0 | V46: 0 | W46: 0 | X46: 0 | Y46: 0 | Z46: 0 | AA46: 0 | AB46: 0 | AC46: 0 | AD46: 0
A47: Total | B47: $ | D47: =SUM(D40:D46) -> 26200000 | E47: =SUM(E40:E46) -> 24890000 | F47: 23645500 | G47: 22463225 | H47: 21340063.75 | I47: 20273060.56 | J47: 19259407.53 | K47: 18296437.16 | L47: 17381615.3 | M47: 16512534.53 | N47: 15686907.81 | O47: 14902562.42 | P47: 14157434.3 | Q47: 13449562.58 | R47: 12777084.45 | S47: 12138230.23 | T47: 11531318.72 | U47: 10954752.78 | V47: 10407015.14 | W47: 9886664.386 | X47: 9392331.167 | Y47: 8922714.609 | Z47: 8476578.878 | AA47: 8052749.934 | AB47: 7650112.438 | AC47: 7267606.816 | AD47: 6904226.475
A49: Return on capital
A51: Return on capital (pre-tax) | B51: $ | C51: Return on capital, before tax, calculated as the average of the opening and closing asset base, multiplied by the pre-tax real weighted average cost of capital. | D51: =IF(D3>=Inputs!$D$8,AVERAGE(D14,D47)*Inputs!$D$79,0) -> 0 | E51: =IF(E3>=Inputs!$D$8,AVERAGE(E14,E47)*Inputs!$D$79,0) -> 3525210 | F51: =IF(F3>=Inputs!$D$8,AVERAGE(F14,F47)*Inputs!$D$79,0) -> 3348949.5 | G51: =IF(G3>=Inputs!$D$8,AVERAGE(G14,G47)*Inputs!$D$79,0) -> 3181502.025 | H51: =IF(H3>=Inputs!$D$8,AVERAGE(H14,H47)*Inputs!$D$79,0) -> 3022426.924 | I51: =IF(I3>=Inputs!$D$8,AVERAGE(I14,I47)*Inputs!$D$79,0) -> 2871305.578 | J51: =IF(J3>=Inputs!$D$8,AVERAGE(J14,J47)*Inputs!$D$79,0) -> 2727740.299 | K51: =IF(K3>=Inputs!$D$8,AVERAGE(K14,K47)*Inputs!$D$79,0) -> 2591353.284 | L51: =IF(L3>=Inputs!$D$8,AVERAGE(L14,L47)*Inputs!$D$79,0) -> 2461785.62 | M51: =IF(M3>=Inputs!$D$8,AVERAGE(M14,M47)*Inputs!$D$79,0) -> 2338696.339 | N51: =IF(N3>=Inputs!$D$8,AVERAGE(N14,N47)*Inputs!$D$79,0) -> 2221761.522 | O51: =IF(O3>=Inputs!$D$8,AVERAGE(O14,O47)*Inputs!$D$79,0) -> 2110673.446 | P51: =IF(P3>=Inputs!$D$8,AVERAGE(P14,P47)*Inputs!$D$79,0) -> 2005139.773 | Q51: =IF(Q3>=Inputs!$D$8,AVERAGE(Q14,Q47)*Inputs!$D$79,0) -> 1904882.785 | R51: =IF(R3>=Inputs!$D$8,AVERAGE(R14,R47)*Inputs!$D$79,0) -> 1809638.645 | S51: =IF(S3>=Inputs!$D$8,AVERAGE(S14,S47)*Inputs!$D$79,0) -> 1719156.713 | T51: =IF(T3>=Inputs!$D$8,AVERAGE(T14,T47)*Inputs!$D$79,0) -> 1633198.877 | U51: =IF(U3>=Inputs!$D$8,AVERAGE(U14,U47)*Inputs!$D$79,0) -> 1551538.934 | V51: =IF(V3>=Inputs!$D$8,AVERAGE(V14,V47)*Inputs!$D$79,0) -> 1473961.987 | W51: =IF(W3>=Inputs!$D$8,AVERAGE(W14,W47)*Inputs!$D$79,0) -> 1400263.888 | X51: =IF(X3>=Inputs!$D$8,AVERAGE(X14,X47)*Inputs!$D$79,0) -> 1330250.693 | Y51: =IF(Y3>=Inputs!$D$8,AVERAGE(Y14,Y47)*Inputs!$D$79,0) -> 1263738.159 | Z51: =IF(Z3>=Inputs!$D$8,AVERAGE(Z14,Z47)*Inputs!$D$79,0) -> 1200551.251 | AA51: =IF(AA3>=Inputs!$D$8,AVERAGE(AA14,AA47)*Inputs!$D$79,0) -> 1140523.688 | AB51: =IF(AB3>=Inputs!$D$8,AVERAGE(AB14,AB47)*Inputs!$D$79,0) -> 1083497.504 | AC51: =IF(AC3>=Inputs!$D$8,AVERAGE(AC14,AC47)*Inputs!$D$79,0) -> 1029322.628 | AD51: =IF(AD3>=Inputs!$D$8,AVERAGE(AD14,AD47)*Inputs!$D$79,0) -> 977856.4971
D57: =Inputs!$D$7 -> 2014 | E57: =D57+1 -> 2015 | F57: 2016 | G57: 2017 | H57: 2018 | I57: 2019 | J57: 2020
A58: Opening asset value
A59: Plus: Capex
A60: Less: Depreciation
A61: Closing asset value

Sheet Tariffs
A1: =[1]TITLE!Title_Project -> Retail Tariff Tool
A2: Tariffs
B3: Unit | C3: Comments | D3: =Inputs!$D$7 -> 2014 | E3: =D3+1 -> 2015 | F3: 2016 | G3: 2017 | H3: 2018 | I3: 2019 | J3: 2020 | K3: 2021 | L3: 2022 | M3: 2023 | N3: 2024 | O3: 2025 | P3: 2026 | Q3: 2027 | R3: 2028 | S3: 2029 | T3: 2030 | U3: 2031 | V3: 2032 | W3: 2033 | X3: 2034 | Y3: 2035 | Z3: 2036 | AA3: 2037 | AB3: 2038 | AC3: 2039 | AD3: 2040
A5: Revenue requirement
A7: Operating costs | B7: $ | C7: The three main 'building blocks' of the costs of supplying electricity. | D7: =Inputs!D31 -> 0 | E7: =Inputs!E31 -> 5800000 | F7: =Inputs!F31 -> 5800000 | G7: =Inputs!G31 -> 5800000 | H7: =Inputs!H31 -> 5800000 | I7: =Inputs!I31 -> 5800000 | J7: =Inputs!J31 -> 5800000 | K7: =Inputs!K31 -> 5800000 | L7: =Inputs!L31 -> 5800000 | M7: =Inputs!M31 -> 5800000 | N7: =Inputs!N31 -> 5800000 | O7: =Inputs!O31 -> 5800000 | P7: =Inputs!P31 -> 5800000 | Q7: =Inputs!Q31 -> 5800000 | R7: =Inputs!R31 -> 5800000 | S7: =Inputs!S31 -> 5800000 | T7: =Inputs!T31 -> 5800000 | U7: =Inputs!U31 -> 5800000 | V7: =Inputs!V31 -> 5800000 | W7: =Inputs!W31 -> 5800000 | X7: =Inputs!X31 -> 5800000 | Y7: =Inputs!Y31 -> 5800000 | Z7: =Inputs!Z31 -> 5800000 | AA7: =Inputs!AA31 -> 5800000 | AB7: =Inputs!AB31 -> 5800000 | AC7: =Inputs!AC31 -> 5800000 | AD7: =Inputs!AD31 -> 5800000
A8: Depreciation | B8: $ | D8: =Calculations!D36 -> 0 | E8: =Calculations!E36 -> 1310000 | F8: =Calculations!F36 -> 1244500 | G8: =Calculations!G36 -> 1182275 | H8: =Calculations!H36 -> 1123161.25 | I8: =Calculations!I36 -> 1067003.188 | J8: =Calculations!J36 -> 1013653.028 | K8: =Calculations!K36 -> 962970.3767 | L8: =Calculations!L36 -> 914821.8579 | M8: =Calculations!M36 -> 869080.765 | N8: =Calculations!N36 -> 825626.7267 | O8: =Calculations!O36 -> 784345.3904 | P8: =Calculations!P36 -> 745128.1209 | Q8: =Calculations!Q36 -> 707871.7148 | R8: =Calculations!R36 -> 672478.1291 | S8: =Calculations!S36 -> 638854.2226 | T8: =Calculations!T36 -> 606911.5115 | U8: =Calculations!U36 -> 576565.9359 | V8: =Calculations!V36 -> 547737.6391 | W8: =Calculations!W36 -> 520350.7572 | X8: =Calculations!X36 -> 494333.2193 | Y8: =Calculations!Y36 -> 469616.5584 | Z8: =Calculations!Z36 -> 446135.7304 | AA8: =Calculations!AA36 -> 423828.9439 | AB8: =Calculations!AB36 -> 402637.4967 | AC8: =Calculations!AC36 -> 382505.6219 | AD8: =Calculations!AD36 -> 363380.3408
A9: Return on capital | B9: $ | D9: =Calculations!D51 -> 0 | E9: =Calculations!E51 -> 3525210 | F9: =Calculations!F51 -> 3348949.5 | G9: =Calculations!G51 -> 3181502.025 | H9: =Calculations!H51 -> 3022426.924 | I9: =Calculations!I51 -> 2871305.578 | J9: =Calculations!J51 -> 2727740.299 | K9: =Calculations!K51 -> 2591353.284 | L9: =Calculations!L51 -> 2461785.62 | M9: =Calculations!M51 -> 2338696.339 | N9: =Calculations!N51 -> 2221761.522 | O9: =Calculations!O51 -> 2110673.446 | P9: =Calculations!P51 -> 2005139.773 | Q9: =Calculations!Q51 -> 1904882.785 | R9: =Calculations!R51 -> 1809638.645 | S9: =Calculations!S51 -> 1719156.713 | T9: =Calculations!T51 -> 1633198.877 | U9: =Calculations!U51 -> 1551538.934 | V9: =Calculations!V51 -> 1473961.987 | W9: =Calculations!W51 -> 1400263.888 | X9: =Calculations!X51 -> 1330250.693 | Y9: =Calculations!Y51 -> 1263738.159 | Z9: =Calculations!Z51 -> 1200551.251 | AA9: =Calculations!AA51 -> 1140523.688 | AB9: =Calculations!AB51 -> 1083497.504 | AC9: =Calculations!AC51 -> 1029322.628 | AD9: =Calculations!AD51 -> 977856.4971
A10: Total costs | B10: $ | D10: =SUM(D7:D9) -> 0 | E10: =SUM(E7:E9) -> 10635210 | F10: 10393449.5 | G10: 10163777.03 | H10: 9945588.174 | I10: 9738308.765 | J10: 9541393.327 | K10: 9354323.66 | L10: 9176607.477 | M10: 9007777.104 | N10: 8847388.248 | O10: 8695018.836 | P10: 8550267.894 | Q10: 8412754.499 | R10: 8282116.774 | S10: 8158010.936 | T10: 8040110.389 | U10: 7928104.87 | V10: 7821699.626 | W10: 7720614.645 | X10: 7624583.913 | Y10: 7533354.717 | Z10: 7446686.981 | AA10: 7364352.632 | AB10: 7286135 | AC10: 7211828.25 | AD10: 7141236.838
A12: Collection rate | B12: % | C12: Costs are grossed up to reflect the fact that some will never be collected (bad debt) | D12: =Inputs!D56 -> 0 | E12: =Inputs!E56 -> 0.9 | F12: =Inputs!F56 -> 0.9 | G12: =Inputs!G56 -> 0.9 | H12: =Inputs!H56 -> 0.9 | I12: =Inputs!I56 -> 0.9 | J12: =Inputs!J56 -> 0.9 | K12: =Inputs!K56 -> 0.9 | L12: =Inputs!L56 -> 0.9 | M12: =Inputs!M56 -> 0.9 | N12: =Inputs!N56 -> 0.9 | O12: =Inputs!O56 -> 0.9 | P12: =Inputs!P56 -> 0.9 | Q12: =Inputs!Q56 -> 0.9 | R12: =Inputs!R56 -> 0.9 | S12: =Inputs!S56 -> 0.9 | T12: =Inputs!T56 -> 0.9 | U12: =Inputs!U56 -> 0.9 | V12: =Inputs!V56 -> 0.9 | W12: =Inputs!W56 -> 0.9 | X12: =Inputs!X56 -> 0.9 | Y12: =Inputs!Y56 -> 0.9 | Z12: =Inputs!Z56 -> 0.9 | AA12: =Inputs!AA56 -> 0.9 | AB12: =Inputs!AB56 -> 0.9 | AC12: =Inputs!AC56 -> 0.9 | AD12: =Inputs!AD56 -> 0.9
A13: Total costs plus uncollected | B13: $ | D13: =IF(D12>0,D10/D12,0) -> 0 | E13: =IF(E12>0,E10/E12,0) -> 11816900 | F13: =IF(F12>0,F10/F12,0) -> 11548277.22 | G13: 11293085.58 | H13: 11050653.53 | I13: 10820343.07 | J13: 10601548.14 | K13: 10393692.96 | L13: 10196230.53 | M13: 10008641.23 | N13: 9830431.387 | O13: 9661132.04 | P13: 9500297.66 | Q13: 9347504.999 | R13: 9202351.972 | S13: 9064456.595 | T13: 8933455.988 | U13: 8809005.411 | V13: 8690777.362 | W13: 8578460.716 | X13: 8471759.903 | Y13: 8370394.13 | Z13: 8274096.646 | AA13: 8182614.036 | AB13: 8095705.556 | AC13: 8013142.5 | AD13: 7934707.598
A15: Less: Deductible income | B15: $ | C15: Non-tariff income is deducted to give the total revenue required to operate the system sustainably. | D15: =-Inputs!D67 -> 0 | E15: =-Inputs!E67 -> -100000 | F15: =-Inputs!F67 -> -100000 | G15: =-Inputs!G67 -> -100000 | H15: =-Inputs!H67 -> -100000 | I15: =-Inputs!I67 -> -100000 | J15: =-Inputs!J67 -> -100000 | K15: =-Inputs!K67 -> -100000 | L15: =-Inputs!L67 -> -100000 | M15: =-Inputs!M67 -> -100000 | N15: =-Inputs!N67 -> -100000 | O15: =-Inputs!O67 -> -100000 | P15: =-Inputs!P67 -> -100000 | Q15: =-Inputs!Q67 -> -100000 | R15: =-Inputs!R67 -> -100000 | S15: =-Inputs!S67 -> -100000 | T15: =-Inputs!T67 -> -100000 | U15: =-Inputs!U67 -> -100000 | V15: =-Inputs!V67 -> -100000 | W15: =-Inputs!W67 -> -100000 | X15: =-Inputs!X67 -> -100000 | Y15: =-Inputs!Y67 -> -100000 | Z15: =-Inputs!Z67 -> -100000 | AA15: =-Inputs!AA67 -> -100000 | AB15: =-Inputs!AB67 -> -100000 | AC15: =-Inputs!AC67 -> -100000 | AD15: =-Inputs!AD67 -> -100000
A16: Total revenue requirement | B16: $ | D16: =D13+D15 -> 0 | E16: 11716900 | F16: 11448277.22 | G16: 11193085.58 | H16: 10950653.53 | I16: 10720343.07 | J16: 10501548.14 | K16: 10293692.96 | L16: 10096230.53 | M16: 9908641.226 | N16: 9730431.387 | O16: 9561132.04 | P16: 9400297.66 | Q16: 9247504.999 | R16: 9102351.972 | S16: 8964456.595 | T16: 8833455.988 | U16: 8709005.411 | V16: 8590777.362 | W16: 8478460.716 | X16: 8371759.903 | Y16: 8270394.13 | Z16: 8174096.646 | AA16: 8082614.036 | AB16: 7995705.556 | AC16: 7913142.5 | AD16: 7834707.598
A18: Average tariffs
A20: Revenue requirement | B20: $ | C20: Revenue is divided by billed consumption to give the required cost-recovery tariff | D20: =D16 -> 0 | E20: =E16 -> 11716900 | F20: 11448277.22 | G20: 11193085.58 | H20: 10950653.53 | I20: 10720343.07 | J20: 10501548.14 | K20: 10293692.96 | L20: 10096230.53 | M20: 9908641.226 | N20: 9730431.387 | O20: 9561132.04 | P20: 9400297.66 | Q20: 9247504.999 | R20: 9102351.972 | S20: 8964456.595 | T20: 8833455.988 | U20: 8709005.411 | V20: 8590777.362 | W20: 8478460.716 | X20: 8371759.903 | Y20: 8270394.13 | Z20: 8174096.646 | AA20: 8082614.036 | AB20: 7995705.556 | AC20: 7913142.5 | AD20: 7834707.598
A21: Billed consumption | B21: kWh | D21: =Inputs!D20 -> 0 | E21: =Inputs!E20 -> 50000000 | F21: =Inputs!F20 -> 51000000 | G21: =Inputs!G20 -> 52020000 | H21: =Inputs!H20 -> 53060400 | I21: =Inputs!I20 -> 54121608 | J21: =Inputs!J20 -> 55204040.16 | K21: =Inputs!K20 -> 56308120.96 | L21: =Inputs!L20 -> 57434283.38 | M21: =Inputs!M20 -> 58582969.05 | N21: =Inputs!N20 -> 59754628.43 | O21: =Inputs!O20 -> 60949721 | P21: =Inputs!P20 -> 62168715.42 | Q21: =Inputs!Q20 -> 63412089.73 | R21: =Inputs!R20 -> 64680331.52 | S21: =Inputs!S20 -> 65973938.15 | T21: =Inputs!T20 -> 67293416.92 | U21: =Inputs!U20 -> 68639285.25 | V21: =Inputs!V20 -> 70012070.96 | W21: =Inputs!W20 -> 71412312.38 | X21: =Inputs!X20 -> 72840558.63 | Y21: =Inputs!Y20 -> 74297369.8 | Z21: =Inputs!Z20 -> 75783317.19 | AA21: =Inputs!AA20 -> 77298983.54 | AB21: =Inputs!AB20 -> 78844963.21 | AC21: =Inputs!AC20 -> 80421862.47 | AD21: =Inputs!AD20 -> 82030299.72
A23: Tariff update? | B23: yes/no | C23: Tariffs are kept constant (in real terms) between updates. | D23: =IF((Tariffs!D3-Inputs!$D$8)/Inputs!$D$9=INT((Tariffs!D3-Inputs!$D$8)/Inputs!$D$9),"Y","N") -> N | E23: =IF((Tariffs!E3-Inputs!$D$8)/Inputs!$D$9=INT((Tariffs!E3-Inputs!$D$8)/Inputs!$D$9),"Y","N") -> Y | F23: =IF((Tariffs!F3-Inputs!$D$8)/Inputs!$D$9=INT((Tariffs!F3-Inputs!$D$8)/Inputs!$D$9),"Y","N") -> N | G23: =IF((Tariffs!G3-Inputs!$D$8)/Inputs!$D$9=INT((Tariffs!G3-Inputs!$D$8)/Inputs!$D$9),"Y","N") -> N | H23: =IF((Tariffs!H3-Inputs!$D$8)/Inputs!$D$9=INT((Tariffs!H3-Inputs!$D$8)/Inputs!$D$9),"Y","N") -> N | I23: =IF((Tariffs!I3-Inputs!$D$8)/Inputs!$D$9=INT((Tariffs!I3-Inputs!$D$8)/Inputs!$D$9),"Y","N") -> N | J23: =IF((Tariffs!J3-Inputs!$D$8)/Inputs!$D$9=INT((Tariffs!J3-Inputs!$D$8)/Inputs!$D$9),"Y","N") -> Y | K23: =IF((Tariffs!K3-Inputs!$D$8)/Inputs!$D$9=INT((Tariffs!K3-Inputs!$D$8)/Inputs!$D$9),"Y","N") -> N | L23: =IF((Tariffs!L3-Inputs!$D$8)/Inputs!$D$9=INT((Tariffs!L3-Inputs!$D$8)/Inputs!$D$9),"Y","N") -> N | M23: =IF((Tariffs!M3-Inputs!$D$8)/Inputs!$D$9=INT((Tariffs!M3-Inputs!$D$8)/Inputs!$D$9),"Y","N") -> N | N23: =IF((Tariffs!N3-Inputs!$D$8)/Inputs!$D$9=INT((Tariffs!N3-Inputs!$D$8)/Inputs!$D$9),"Y","N") -> N | O23: =IF((Tariffs!O3-Inputs!$D$8)/Inputs!$D$9=INT((Tariffs!O3-Inputs!$D$8)/Inputs!$D$9),"Y","N") -> Y | P23: =IF((Tariffs!P3-Inputs!$D$8)/Inputs!$D$9=INT((Tariffs!P3-Inputs!$D$8)/Inputs!$D$9),"Y","N") -> N | Q23: =IF((Tariffs!Q3-Inputs!$D$8)/Inputs!$D$9=INT((Tariffs!Q3-Inputs!$D$8)/Inputs!$D$9),"Y","N") -> N | R23: =IF((Tariffs!R3-Inputs!$D$8)/Inputs!$D$9=INT((Tariffs!R3-Inputs!$D$8)/Inputs!$D$9),"Y","N") -> N | S23: =IF((Tariffs!S3-Inputs!$D$8)/Inputs!$D$9=INT((Tariffs!S3-Inputs!$D$8)/Inputs!$D$9),"Y","N") -> N | T23: =IF((Tariffs!T3-Inputs!$D$8)/Inputs!$D$9=INT((Tariffs!T3-Inputs!$D$8)/Inputs!$D$9),"Y","N") -> Y | U23: =IF((Tariffs!U3-Inputs!$D$8)/Inputs!$D$9=INT((Tariffs!U3-Inputs!$D$8)/Inputs!$D$9),"Y","N") -> N | V23: =IF((Tariffs!V3-Inputs!$D$8)/Inputs!$D$9=INT((Tariffs!V3-Inputs!$D$8)/Inputs!$D$9),"Y","N") -> N | W23: =IF((Tariffs!W3-Inputs!$D$8)/Inputs!$D$9=INT((Tariffs!W3-Inputs!$D$8)/Inputs!$D$9),"Y","N") -> N | X23: =IF((Tariffs!X3-Inputs!$D$8)/Inputs!$D$9=INT((Tariffs!X3-Inputs!$D$8)/Inputs!$D$9),"Y","N") -> N | Y23: =IF((Tariffs!Y3-Inputs!$D$8)/Inputs!$D$9=INT((Tariffs!Y3-Inputs!$D$8)/Inputs!$D$9),"Y","N") -> Y | Z23: =IF((Tariffs!Z3-Inputs!$D$8)/Inputs!$D$9=INT((Tariffs!Z3-Inputs!$D$8)/Inputs!$D$9),"Y","N") -> N | AA23: =IF((Tariffs!AA3-Inputs!$D$8)/Inputs!$D$9=INT((Tariffs!AA3-Inputs!$D$8)/Inputs!$D$9),"Y","N") -> N | AB23: =IF((Tariffs!AB3-Inputs!$D$8)/Inputs!$D$9=INT((Tariffs!AB3-Inputs!$D$8)/Inputs!$D$9),"Y","N") -> N | AC23: =IF((Tariffs!AC3-Inputs!$D$8)/Inputs!$D$9=INT((Tariffs!AC3-Inputs!$D$8)/Inputs!$D$9),"Y","N") -> N | AD23: =IF((Tariffs!AD3-Inputs!$D$8)/Inputs!$D$9=INT((Tariffs!AD3-Inputs!$D$8)/Inputs!$D$9),"Y","N") -> Y
A24: NPV (revenue requirement) | B24: $ | D24: =IF(D23="Y",NPV(Inputs!$D$79,OFFSET(D20,0,0,,Inputs!$D$9)),"") ->  | E24: =IF(E23="Y",NPV(Inputs!$D$79,OFFSET(E20,0,0,,Inputs!$D$9)),"") -> 38877305.42 | F24: =IF(F23="Y",NPV(Inputs!$D$79,OFFSET(F20,0,0,,Inputs!$D$9)),"") ->  | G24: =IF(G23="Y",NPV(Inputs!$D$79,OFFSET(G20,0,0,,Inputs!$D$9)),"") ->  | H24: =IF(H23="Y",NPV(Inputs!$D$79,OFFSET(H20,0,0,,Inputs!$D$9)),"") ->  | I24: =IF(I23="Y",NPV(Inputs!$D$79,OFFSET(I20,0,0,,Inputs!$D$9)),"") ->  | J24: =IF(J23="Y",NPV(Inputs!$D$79,OFFSET(J20,0,0,,Inputs!$D$9)),"") -> 35033570.56 | K24: =IF(K23="Y",NPV(Inputs!$D$79,OFFSET(K20,0,0,,Inputs!$D$9)),"") ->  | L24: =IF(L23="Y",NPV(Inputs!$D$79,OFFSET(L20,0,0,,Inputs!$D$9)),"") ->  | M24: =IF(M23="Y",NPV(Inputs!$D$79,OFFSET(M20,0,0,,Inputs!$D$9)),"") ->  | N24: =IF(N23="Y",NPV(Inputs!$D$79,OFFSET(N20,0,0,,Inputs!$D$9)),"") ->  | O24: =IF(O23="Y",NPV(Inputs!$D$79,OFFSET(O20,0,0,,Inputs!$D$9)),"") -> 32059361.8 | P24: =IF(P23="Y",NPV(Inputs!$D$79,OFFSET(P20,0,0,,Inputs!$D$9)),"") ->  | Q24: =IF(Q23="Y",NPV(Inputs!$D$79,OFFSET(Q20,0,0,,Inputs!$D$9)),"") ->  | R24: =IF(R23="Y",NPV(Inputs!$D$79,OFFSET(R20,0,0,,Inputs!$D$9)),"") ->  | S24: =IF(S23="Y",NPV(Inputs!$D$79,OFFSET(S20,0,0,,Inputs!$D$9)),"") ->  | T24: =IF(T23="Y",NPV(Inputs!$D$79,OFFSET(T20,0,0,,Inputs!$D$9)),"") -> 29757975.75 | U24: =IF(U23="Y",NPV(Inputs!$D$79,OFFSET(U20,0,0,,Inputs!$D$9)),"") ->  | V24: =IF(V23="Y",NPV(Inputs!$D$79,OFFSET(V20,0,0,,Inputs!$D$9)),"") ->  | W24: =IF(W23="Y",NPV(Inputs!$D$79,OFFSET(W20,0,0,,Inputs!$D$9)),"") ->  | X24: =IF(X23="Y",NPV(Inputs!$D$79,OFFSET(X20,0,0,,Inputs!$D$9)),"") ->  | Y24: =IF(Y23="Y",NPV(Inputs!$D$79,OFFSET(Y20,0,0,,Inputs!$D$9)),"") -> 27977207.1 | Z24: =IF(Z23="Y",NPV(Inputs!$D$79,OFFSET(Z20,0,0,,Inputs!$D$9)),"") ->  | AA24: =IF(AA23="Y",NPV(Inputs!$D$79,OFFSET(AA20,0,0,,Inputs!$D$9)),"") ->  | AB24: =IF(AB23="Y",NPV(Inputs!$D$79,OFFSET(AB20,0,0,,Inputs!$D$9)),"") ->  | AC24: =IF(AC23="Y",NPV(Inputs!$D$79,OFFSET(AC20,0,0,,Inputs!$D$9)),"") ->  | AD24: =IF(AD23="Y",NPV(Inputs!$D$79,OFFSET(AD20,0,0,,Inputs!$D$9)),"") -> 6884628.82
A25: NPV (billed consumption) | B25: kWh | D25: =IF(D23="Y",NPV(Inputs!$D$79,OFFSET(D21,0,0,,Inputs!$D$9)),"") ->  | E25: =IF(E23="Y",NPV(Inputs!$D$79,OFFSET(E21,0,0,,Inputs!$D$9)),"") -> 178609492.2 | F25: =IF(F23="Y",NPV(Inputs!$D$79,OFFSET(F21,0,0,,Inputs!$D$9)),"") ->  | G25: =IF(G23="Y",NPV(Inputs!$D$79,OFFSET(G21,0,0,,Inputs!$D$9)),"") ->  | H25: =IF(H23="Y",NPV(Inputs!$D$79,OFFSET(H21,0,0,,Inputs!$D$9)),"") ->  | I25: =IF(I23="Y",NPV(Inputs!$D$79,OFFSET(I21,0,0,,Inputs!$D$9)),"") ->  | J25: =IF(J23="Y",NPV(Inputs!$D$79,OFFSET(J21,0,0,,Inputs!$D$9)),"") -> 197199311.6 | K25: =IF(K23="Y",NPV(Inputs!$D$79,OFFSET(K21,0,0,,Inputs!$D$9)),"") ->  | L25: =IF(L23="Y",NPV(Inputs!$D$79,OFFSET(L21,0,0,,Inputs!$D$9)),"") ->  | M25: =IF(M23="Y",NPV(Inputs!$D$79,OFFSET(M21,0,0,,Inputs!$D$9)),"") ->  | N25: =IF(N23="Y",NPV(Inputs!$D$79,OFFSET(N21,0,0,,Inputs!$D$9)),"") ->  | O25: =IF(O23="Y",NPV(Inputs!$D$79,OFFSET(O21,0,0,,Inputs!$D$9)),"") -> 217723974.4 | P25: =IF(P23="Y",NPV(Inputs!$D$79,OFFSET(P21,0,0,,Inputs!$D$9)),"") ->  | Q25: =IF(Q23="Y",NPV(Inputs!$D$79,OFFSET(Q21,0,0,,Inputs!$D$9)),"") ->  | R25: =IF(R23="Y",NPV(Inputs!$D$79,OFFSET(R21,0,0,,Inputs!$D$9)),"") ->  | S25: =IF(S23="Y",NPV(Inputs!$D$79,OFFSET(S21,0,0,,Inputs!$D$9)),"") ->  | T25: =IF(T23="Y",NPV(Inputs!$D$79,OFFSET(T21,0,0,,Inputs!$D$9)),"") -> 240384860.5 | U25: =IF(U23="Y",NPV(Inputs!$D$79,OFFSET(U21,0,0,,Inputs!$D$9)),"") ->  | V25: =IF(V23="Y",NPV(Inputs!$D$79,OFFSET(V21,0,0,,Inputs!$D$9)),"") ->  | W25: =IF(W23="Y",NPV(Inputs!$D$79,OFFSET(W21,0,0,,Inputs!$D$9)),"") ->  | X25: =IF(X23="Y",NPV(Inputs!$D$79,OFFSET(X21,0,0,,Inputs!$D$9)),"") ->  | Y25: =IF(Y23="Y",NPV(Inputs!$D$79,OFFSET(Y21,0,0,,Inputs!$D$9)),"") -> 265404309.8 | Z25: =IF(Z23="Y",NPV(Inputs!$D$79,OFFSET(Z21,0,0,,Inputs!$D$9)),"") ->  | AA25: =IF(AA23="Y",NPV(Inputs!$D$79,OFFSET(AA21,0,0,,Inputs!$D$9)),"") ->  | AB25: =IF(AB23="Y",NPV(Inputs!$D$79,OFFSET(AB21,0,0,,Inputs!$D$9)),"") ->  | AC25: =IF(AC23="Y",NPV(Inputs!$D$79,OFFSET(AC21,0,0,,Inputs!$D$9)),"") ->  | AD25: =IF(AD23="Y",NPV(Inputs!$D$79,OFFSET(AD21,0,0,,Inputs!$D$9)),"") -> 72082864.43
A27: Average tariff | B27: $/kWh | D27: =IF(D25<>"",D24/D25,"") ->  | E27: 0.2176665133 | J27: 0.1776556433 | O27: 0.1472477337 | T27: 0.1237930529 | Y27: 0.1054135373 | AD27: 0.09550992285
A29: Cost-recovery tariffs
A31: Cost recovery tariff (real) | B31: =B27 -> $/kWh | C31: Shows annual tariffs, adjusted at the end of each tariff period, in both real and nominal terms (excluding and including inflation). | D31: =IF(D27<>"",D27,0) -> 0 | E31: =IF(E27<>"",E27,D31) -> 0.2176665133 | F31: 0.2176665133 | G31: 0.2176665133 | H31: 0.2176665133 | I31: 0.2176665133 | J31: 0.1776556433 | K31: 0.1776556433 | L31: 0.1776556433 | M31: 0.1776556433 | N31: 0.1776556433 | O31: 0.1472477337 | P31: 0.1472477337 | Q31: 0.1472477337 | R31: 0.1472477337 | S31: 0.1472477337 | T31: 0.1237930529 | U31: 0.1237930529 | V31: 0.1237930529 | W31: 0.1237930529 | X31: 0.1237930529 | Y31: 0.1054135373 | Z31: 0.1054135373 | AA31: 0.1054135373 | AB31: 0.1054135373 | AC31: 0.1054135373 | AD31: 0.09550992285
A32: Inflation factor | B32: factor | D32: 1 | E32: =D32*(1+Inputs!D83) -> 1.04 | F32: =E32*(1+Inputs!E83) -> 1.0816 | G32: =F32*(1+Inputs!F83) -> 1.124864 | H32: =G32*(1+Inputs!G83) -> 1.16985856 | I32: =H32*(1+Inputs!H83) -> 1.216652902 | J32: =I32*(1+Inputs!I83) -> 1.265319018 | K32: =J32*(1+Inputs!J83) -> 1.315931779 | L32: =K32*(1+Inputs!K83) -> 1.36856905 | M32: =L32*(1+Inputs!L83) -> 1.423311812 | N32: =M32*(1+Inputs!M83) -> 1.480244285 | O32: =N32*(1+Inputs!N83) -> 1.539454056 | P32: =O32*(1+Inputs!O83) -> 1.601032219 | Q32: =P32*(1+Inputs!P83) -> 1.665073507 | R32: =Q32*(1+Inputs!Q83) -> 1.731676448 | S32: =R32*(1+Inputs!R83) -> 1.800943506 | T32: =S32*(1+Inputs!S83) -> 1.872981246 | U32: =T32*(1+Inputs!T83) -> 1.947900496 | V32: =U32*(1+Inputs!U83) -> 2.025816515 | W32: =V32*(1+Inputs!V83) -> 2.106849176 | X32: =W32*(1+Inputs!W83) -> 2.191123143 | Y32: =X32*(1+Inputs!X83) -> 2.278768069 | Z32: =Y32*(1+Inputs!Y83) -> 2.369918792 | AA32: =Z32*(1+Inputs!Z83) -> 2.464715543 | AB32: =AA32*(1+Inputs!AA83) -> 2.563304165 | AC32: =AB32*(1+Inputs!AB83) -> 2.665836331 | AD32: =AC32*(1+Inputs!AC83) -> 2.772469785
A33: Cost recovery tariff (nominal) | B33: $/kWh | D33: =IF(D31<>"",D31*D32,"") -> 0 | E33: =IF(E31<>"",E31*E32,"") -> 0.2263731739 | F33: 0.2354281008 | G33: 0.2448452249 | H33: 0.2546390339 | I33: 0.2648245952 | J33: 0.2247910642 | K33: 0.2337827068 | L33: 0.243134015 | M33: 0.2528593756 | N33: 0.2629737507 | O33: 0.2266811209 | P33: 0.2357483658 | Q33: 0.2451783004 | R33: 0.2549854324 | S33: 0.2651848497 | T33: 0.2318620665 | U33: 0.2411365491 | V33: 0.2507820111 | W33: 0.2608132915 | X33: 0.2712458232 | Y33: 0.2402130027 | Z33: 0.2498215228 | AA33: 0.2598143837 | AB33: 0.2702069591 | AC33: 0.2810152374 | AD33: 0.2647983752
A35: Adjustments to tariffs to improve cashflow
A37: Tariff adjustment factor | B37: factor | C37: Adjustment factors can be used to change the profile of tariffs so that cash flow is improved. Adjustments should be revenue neutral over time. | D37: 1 | E37: 1 | F37: 1 | G37: 1 | H37: 1 | I37: 1 | J37: 1 | K37: 1 | L37: 1 | M37: 1 | N37: 1 | O37: 1 | P37: 1 | Q37: 1 | R37: 1 | S37: 1 | T37: 1 | U37: 1 | V37: 1 | W37: 1 | X37: 1 | Y37: 1 | Z37: 1 | AA37: 1 | AB37: 1 | AC37: 1 | AD37: 1
A38: Adjusted tariff (real) | B38: $/kWh | D38: =D32*D36 -> 0 | E38: =E31*E37 -> 0.2176665133 | F38: =F31*F37 -> 0.2176665133 | G38: 0.2176665133 | H38: 0.2176665133 | I38: 0.2176665133 | J38: 0.1776556433 | K38: 0.1776556433 | L38: 0.1776556433 | M38: 0.1776556433 | N38: 0.1776556433 | O38: 0.1472477337 | P38: 0.1472477337 | Q38: 0.1472477337 | R38: 0.1472477337 | S38: 0.1472477337 | T38: 0.1237930529 | U38: 0.1237930529 | V38: 0.1237930529 | W38: 0.1237930529 | X38: 0.1237930529 | Y38: 0.1054135373 | Z38: 0.1054135373 | AA38: 0.1054135373 | AB38: 0.1054135373 | AC38: 0.1054135373 | AD38: 0.09550992285
A39: Adjusted tariff (nominal) | B39: $/kWh | D39: 0 | E39: 0.2263731739 | F39: 0.2354281008 | G39: 0.2448452249 | H39: 0.2546390339 | I39: 0.2648245952 | J39: 0.2247910642 | K39: 0.2337827068 | L39: 0.243134015 | M39: 0.2528593756 | N39: 0.2629737507 | O39: 0.2266811209 | P39: 0.2357483658 | Q39: 0.2451783004 | R39: 0.2549854324 | S39: 0.2651848497 | T39: =T33*T37 -> 0.2318620665 | U39: 0.2411365491 | V39: 0.2507820111 | W39: 0.2608132915 | X39: 0.2712458232 | Y39: 0.2402130027 | Z39: 0.2498215228 | AA39: 0.2598143837 | AB39: 0.2702069591 | AC39: 0.2810152374 | AD39: 0.2647983752
A41: Cash at End of Year | B41: $ | C41: Cash flow indicators are calculated on the cash flow worksheet | D41: ='Cash flow'!D29 -> 0 | E41: ='Cash flow'!E29 -> -509607.1755 | F41: ='Cash flow'!F29 -> -343537.3473 | G41: ='Cash flow'!G29 -> 526381.5904 | H41: ='Cash flow'!H29 -> 2130231.891 | I41: ='Cash flow'!I29 -> 4500129.986 | J41: ='Cash flow'!J29 -> 5155049.022 | K41: ='Cash flow'!K29 -> 6493956.318 | L41: ='Cash flow'!L29 -> 8546597.858 | M41: ='Cash flow'!M29 -> 11344768.21 | N41: ='Cash flow'!N29 -> 14922444.66
A42: Debt service coverage | B42: factor | E42: ='Cash flow'!E33 -> 0.7221334921 | F42: ='Cash flow'!F33 -> 1.090550615 | G42: ='Cash flow'!G33 -> 1.474328756 | H42: ='Cash flow'!H33 -> 1.874509433 | I42: ='Cash flow'!I33 -> 2.292201796 | J42: ='Cash flow'!J33 -> 1.357098711 | K42: ='Cash flow'!K33 -> 1.730047599 | L42: ='Cash flow'!L33 -> 2.119215671 | M42: ='Cash flow'!M33 -> 2.525719928 | N42: ='Cash flow'!N33 -> 2.950750522

Sheet Cash flow
A1: =[1]TITLE!Title_Project -> Retail Tariff Tool
A2: Cash flow analysis
B3: Unit | C3: Comments | D3: =Inputs!$D$7 -> 2014 | E3: =D3+1 -> 2015 | F3: 2016 | G3: 2017 | H3: 2018 | I3: 2019 | J3: 2020 | K3: 2021 | L3: 2022 | M3: 2023 | N3: 2024
A5: Operating cash flows
A7: Tariff revenue collected | B7: $ | C7: Total tariff revenue, less the amount no collected | D7: =Tariffs!D39*Tariffs!D21*Tariffs!D12 -> 0 | E7: =Tariffs!E39*Tariffs!E21*Tariffs!E12 -> 10186792.82 | F7: =Tariffs!F39*Tariffs!F21*Tariffs!F12 -> 10806149.83 | G7: =Tariffs!G39*Tariffs!G21*Tariffs!G12 -> 11463163.74 | H7: =Tariffs!H39*Tariffs!H21*Tariffs!H12 -> 12160124.09 | I7: =Tariffs!I39*Tariffs!I21*Tariffs!I12 -> 12899459.64 | J7: =Tariffs!J39*Tariffs!J21*Tariffs!J12 -> 11168437.44 | K7: =Tariffs!K39*Tariffs!K21*Tariffs!K12 -> 11847478.44 | L7: =Tariffs!L39*Tariffs!L21*Tariffs!L12 -> 12567805.13 | M7: =Tariffs!M39*Tariffs!M21*Tariffs!M12 -> 13331927.68 | N7: =Tariffs!N39*Tariffs!N21*Tariffs!N12 -> 14142508.88
A8: Deductible revenue | B8: $ | C8: Plus non-tariff revenue | D8: =-Tariffs!D15*Tariffs!D32 -> 0 | E8: =-Tariffs!E15*Tariffs!E32 -> 104000 | F8: =-Tariffs!F15*Tariffs!F32 -> 108160 | G8: =-Tariffs!G15*Tariffs!G32 -> 112486.4 | H8: =-Tariffs!H15*Tariffs!H32 -> 116985.856 | I8: =-Tariffs!I15*Tariffs!I32 -> 121665.2902 | J8: =-Tariffs!J15*Tariffs!J32 -> 126531.9018 | K8: =-Tariffs!K15*Tariffs!K32 -> 131593.1779 | L8: =-Tariffs!L15*Tariffs!L32 -> 136856.905 | M8: =-Tariffs!M15*Tariffs!M32 -> 142331.1812 | N8: =-Tariffs!N15*Tariffs!N32 -> 148024.4285
A9: Operating costs | B9: $ | C9: Less operating costs. | D9: =-Tariffs!D7*Tariffs!D32 -> 0 | E9: =-Tariffs!E7*Tariffs!E32 -> -6032000 | F9: =-Tariffs!F7*Tariffs!F32 -> -6273280 | G9: =-Tariffs!G7*Tariffs!G32 -> -6524211.2 | H9: =-Tariffs!H7*Tariffs!H32 -> -6785179.648 | I9: =-Tariffs!I7*Tariffs!I32 -> -7056586.834 | J9: =-Tariffs!J7*Tariffs!J32 -> -7338850.307 | K9: =-Tariffs!K7*Tariffs!K32 -> -7632404.32 | L9: =-Tariffs!L7*Tariffs!L32 -> -7937700.492 | M9: =-Tariffs!M7*Tariffs!M32 -> -8255208.512 | N9: =-Tariffs!N7*Tariffs!N32 -> -8585416.853
A10: Interest on loans | B10: $ | C10: Plus interest on loans, which is calculated assuming that financing parameters on the Inputs worksheet, and that the investor is unable to refinance (to maintain an optimal capital structure) in these initial years of operation. | E10: =-(SUM($D20:D20)+SUM($D21:D21))*Inputs!$D$74 -> -2934400 | F10: =-(SUM($D20:E20)+SUM($D21:E21))*Inputs!$D$74 -> -2640960 | G10: =-(SUM($D20:F20)+SUM($D21:F21))*Inputs!$D$74 -> -2347520 | H10: =-(SUM($D20:G20)+SUM($D21:G21))*Inputs!$D$74 -> -2054080 | I10: =-(SUM($D20:H20)+SUM($D21:H21))*Inputs!$D$74 -> -1760640 | J10: =-(SUM($D20:I20)+SUM($D21:I21))*Inputs!$D$74 -> -1467200 | K10: =-(SUM($D20:J20)+SUM($D21:J21))*Inputs!$D$74 -> -1173760 | L10: =-(SUM($D20:K20)+SUM($D21:K21))*Inputs!$D$74 -> -880320 | M10: =-(SUM($D20:L20)+SUM($D21:L21))*Inputs!$D$74 -> -586880 | N10: =-(SUM($D20:M20)+SUM($D21:M21))*Inputs!$D$74 -> -293440
A11: Net operating cash flow | B11: $ | C11: Gives the annual operating cash flow | D11: =SUM(D7:D10) -> 0 | E11: 1324392.824 | F11: 2000069.828 | G11: 2703918.938 | H11: 3437850.301 | I11: 4203898.094 | J11: 2488919.036 | K11: 3172907.296 | L11: 3886641.54 | M11: 4632170.348 | N11: 5411676.458
A13: Investing cash flows
A15: Investment costs | B15: $ | C15: The cost of capital expenditure | D15: =-Inputs!D42*Tariffs!D32 -> -26200000 | E15: =-Inputs!E42*Tariffs!E32 -> 0 | F15: =-Inputs!F42*Tariffs!F32 -> 0 | G15: =-Inputs!G42*Tariffs!G32 -> 0 | H15: =-Inputs!H42*Tariffs!H32 -> 0 | I15: =-Inputs!I42*Tariffs!I32 -> 0 | J15: =-Inputs!J42*Tariffs!J32 -> 0 | K15: =-Inputs!K42*Tariffs!K32 -> 0 | L15: =-Inputs!L42*Tariffs!L32 -> 0 | M15: =-Inputs!M42*Tariffs!M32 -> 0 | N15: =-Inputs!N42*Tariffs!N32 -> 0
A16: Net investing cash flow | B16: $ | D16: =SUM(D15) -> -26200000 | E16: 0 | F16: 0 | G16: 0 | H16: 0 | I16: 0 | J16: =SUM(J15) -> 0 | K16: 0 | L16: 0 | M16: 0 | N16: 0
A18: Financing cash flows
A20: Proceeds on loan | B20: $ | C20: As above, assumes that capital expenditure is initally financed based with gearing on Inputs worksheet, but that the investor is unable to refinance (to maintain an optimal capital structure) in these initial years of operation. | D20: =-Inputs!$D$71*D16 -> 18340000 | E20: =-Inputs!$D$71*E16 -> 0 | F20: =-Inputs!$D$71*F16 -> 0 | G20: =-Inputs!$D$71*G16 -> 0 | H20: =-Inputs!$D$71*H16 -> 0 | I20: =-Inputs!$D$71*I16 -> 0 | J20: =-Inputs!$D$71*J16 -> 0 | K20: =-Inputs!$D$71*K16 -> 0 | L20: =-Inputs!$D$71*L16 -> 0 | M20: =-Inputs!$D$71*M16 -> 0 | N20: =-Inputs!$D$71*N16 -> 0
A21: Principal paid on Loan | B21: $ | C21: Loan paid based on term of loan | E21: =-SUM(OFFSET(D20,0,0,,-MIN(COLUMN(D20)-COLUMN($D20)+1,Inputs!$D$72)))/Inputs!$D$72 -> -1834000 | F21: =-SUM(OFFSET(E20,0,0,,-MIN(COLUMN(E20)-COLUMN($D20)+1,Inputs!$D$72)))/Inputs!$D$72 -> -1834000 | G21: =-SUM(OFFSET(F20,0,0,,-MIN(COLUMN(F20)-COLUMN($D20)+1,Inputs!$D$72)))/Inputs!$D$72 -> -1834000 | H21: =-SUM(OFFSET(G20,0,0,,-MIN(COLUMN(G20)-COLUMN($D20)+1,Inputs!$D$72)))/Inputs!$D$72 -> -1834000 | I21: =-SUM(OFFSET(H20,0,0,,-MIN(COLUMN(H20)-COLUMN($D20)+1,Inputs!$D$72)))/Inputs!$D$72 -> -1834000 | J21: =-SUM(OFFSET(I20,0,0,,-MIN(COLUMN(I20)-COLUMN($D20)+1,Inputs!$D$72)))/Inputs!$D$72 -> -1834000 | K21: =-SUM(OFFSET(J20,0,0,,-MIN(COLUMN(J20)-COLUMN($D20)+1,Inputs!$D$72)))/Inputs!$D$72 -> -1834000 | L21: =-SUM(OFFSET(K20,0,0,,-MIN(COLUMN(K20)-COLUMN($D20)+1,Inputs!$D$72)))/Inputs!$D$72 -> -1834000 | M21: =-SUM(OFFSET(L20,0,0,,-MIN(COLUMN(L20)-COLUMN($D20)+1,Inputs!$D$72)))/Inputs!$D$72 -> -1834000 | N21: =-SUM(OFFSET(M20,0,0,,-MIN(COLUMN(M20)-COLUMN($D20)+1,Inputs!$D$72)))/Inputs!$D$72 -> -1834000
A22: Equity contributions | B22: $ | C22: Equity share of capital expenditure | D22: =-D16*(1-Inputs!$D$71) -> 7860000 | E22: =-E16*(1-Inputs!$D$71) -> 0 | F22: =-F16*(1-Inputs!$D$71) -> 0 | G22: =-G16*(1-Inputs!$D$71) -> 0 | H22: =-H16*(1-Inputs!$D$71) -> 0 | I22: =-I16*(1-Inputs!$D$71) -> 0 | J22: =-J16*(1-Inputs!$D$71) -> 0 | K22: =-K16*(1-Inputs!$D$71) -> 0 | L22: =-L16*(1-Inputs!$D$71) -> 0 | M22: =-M16*(1-Inputs!$D$71) -> 0 | N22: =-N16*(1-Inputs!$D$71) -> 0
A23: Net financing cash flow | B23: $ | C23: Gives the anna | D23: =SUM(D20:D22) -> 26200000 | E23: =SUM(E20:E22) -> -1834000 | F23: -1834000 | G23: -1834000 | H23: -1834000 | I23: -1834000 | J23: -1834000 | K23: -1834000 | L23: -1834000 | M23: -1834000 | N23: -1834000
A25: Net cash flows
A27: Cash at Beginning of Year | B27: $ | D27: 0 | E27: =D29 -> 0 | F27: =E29 -> -509607.1755 | G27: -343537.3473 | H27: 526381.5904 | I27: 2130231.891 | J27: 4500129.986 | K27: 5155049.022 | L27: 6493956.318 | M27: 8546597.858 | N27: 11344768.21
A28: Net Change in Cash | B28: $ | D28: =D11+D16+D23 -> 0 | E28: =E11+E16+E23 -> -509607.1755 | F28: =F11+F16+F23 -> 166069.8282 | G28: 869918.9378 | H28: 1603850.301 | I28: 2369898.094 | J28: 654919.0363 | K28: 1338907.296 | L28: 2052641.54 | M28: 2798170.348 | N28: 3577676.458
A29: Cash at End of Year | B29: $ | D29: =D27+D28 -> 0 | E29: -509607.1755 | F29: -343537.3473 | G29: 526381.5904 | H29: 2130231.891 | I29: 4500129.986 | J29: 5155049.022 | K29: 6493956.318 | L29: 8546597.858 | M29: 11344768.21 | N29: 14922444.66
A31: Debt service coverage
A33: Debt service coverage ratio | B33: ratio | E33: =IF(E21<>0,E11/-E21,"") -> 0.7221334921 | F33: =IF(F21<>0,F11/-F21,"") -> 1.090550615 | G33: 1.474328756 | H33: 1.874509433 | I33: 2.292201796 | J33: 1.357098711 | K33: 1.730047599 | L33: 2.119215671 | M33: 2.525719928 | N33: 2.950750522
